{"text_format":"1","workbook":"xlsx","n_sheets":21,"sheets":["temp","data","Prijavnica","Kratka navodila","Osnovne informacije","Povzetek projekta","Projektno partnerstvo","data_pobude","Opis projekta","Delovni načrt projekta","data_del_nacrt","Oprema","data_oprema","Finančni načrt","data_cas_nacrt","Časovni načrt projekta","Tveganje za izvedbo projekta","Vpliv projekta na horizontalne","Načrt informiranja in obveščanj","Kontrolni seznam","Podpis"],"not_rendered":{"charts":0,"images":936,"macros":1,"external_links":0,"defined_names":63,"comments":1,"pivot_tables":0},"unopened":[],"bounds":{"document_bytes":16777216,"sheet_cells":100000,"rows_first":2000,"rows_last":500,"rows_between":2000,"halvings":0,"cell_chars":16384,"cell_head_chars":4096},"cells_cut":0,"cells_raw":0,"read":"whole","date_system":"1900"}

{"sheet":"temp","index":0,"n_rows":6,"n_cols":5,"rows_kept":6,"cut":false,"hidden":true,"merged":[]}
[]
[]
[]
[]
["Usposobljenost projektne skupine za izvedbo projekta"]
["Ime in priimek","Prijavitelj/ št. partnerja",null,"Vloga v projektu","Ključna znanja s pod-področja razpisa pombembnega za izvedbo projekta"]

{"sheet":"data","index":1,"n_rows":51,"n_cols":3,"rows_kept":51,"cut":false,"hidden":true,"merged":[]}
[]
["2. področji razpisa","Pobude za javno zdravje"]
[null,"Enakost spolov"]
[]
[]
["2. področje_a","Zmanjševanje razlik v zdravju med skupinami uporabnikov",1]
[null,"Preprečevanje bolezni, povezanih z življenjskim slogom",2]
[null,"Izboljšanje storitev na področju duševnega zdravja",3]
[]
["2. področje_b","Odločanje na gospodarskem področju",4]
[null,"Odločanje na političnem področju",5]
[null,"Usklajevanje poklicnega in družinskega življenja",6]
[]
[null,"JZ","ES"]
["4.1_pravni_statusi","pravna oseba javnega prava","pravna oseba javnega prava"]
[null,"neprofitna pravna oseba zasebnega prava, ki je nevladna organizacija","neprofitna pravna oseba zasebnega prava, ki je nevladna organizacija"]
[null,"neprofitna pravna oseba zasebnega prava, ki ni nevladna organizacija","neprofitna pravna oseba zasebnega prava, ki ni nevladna organizacija"]
[null,null,"profitna pravna oseba zasebnega prava"]
["osnovne informacije B28",{"$f":"IF('Osnovne informacije'!B29=1,\"'data'!B15:'data'!B17\",\"'data'!C15:'data'!C18\")","v":"'data'!B15:'data'!B17"}]
[]
[]
["Statistične regije","Pomurje"]
[null,"Podravje"]
[null,"Koroška"]
[null,"Osrednjeslovenska"]
[null,"Gorenjska"]
[null,"Zasavska"]
[null,"Dolenjska"]
[null,"Notranjsko - kraška"]
[null,"Goriška"]
[null,"Obalnokraška"]
[null,"Spodnjeposavska"]
[null,"Savinjska"]
[]
[]
["število parnterjev",1]
[null,2]
[null,3]
[null,4]
[null,5]
[null,6]
[null,7]
[null,8]
[null,9]
[null,10]
[null,11]
[null,12]
[null,13]
[null,14]
[null,15]
[null,16]

{"sheet":"Prijavnica","index":2,"n_rows":14,"n_cols":6,"rows_kept":14,"cut":false,"hidden":false,"merged":[[13,3,13,4],[12,5,12,6],[13,5,13,6],[0,1,0,6],[1,1,1,6],[2,1,2,6],[3,1,3,6],[4,1,4,6],[5,1,5,6],[6,1,6,6],[7,1,7,6],[8,1,8,6],[9,1,9,6],[12,3,12,4]]}
[]
[null,"PRIJAVNICA "]
[]
[null,"na javni razpis za sofinanciranje projektov"]
[]
[null,"Programa Norveškega finančnega mehanizma 2009–2014 \nin"]
[null,"Programa Finančnega mehanizma EGP 2009–2014"]
[]
[]
[null,"Sklop A  –  Program Norveškega finančnega mehanizma\n2009-2014"]
[]
[]
[null,"Izpolni MGRT:",null,"SPIS številka"]
[null,null,null,"Številka programa",null,"SI05"]

{"sheet":"Kratka navodila","index":3,"n_rows":32,"n_cols":1,"rows_kept":32,"cut":false,"hidden":false,"merged":[]}
["1. Kratka navodila za izpolnjevanje prijavnice"]
[]
[]
[]
["Pred izpolnjevanjem prijavnice obvezno preberite Navodila za izpolnjevanje prijavnice – Sklop A, ki prijavnico dopolnjujejo z dodatnimi napotki."]
["Prijavnico obvezno izpolnite v celoti (vsa polja označena z zeleno barvo in spustni seznami označeni z rumeno barvo), razen če so podana drugačna navodila (polja označena z belo barvo) in tistih delov, ki se izpolnijo samodejno (polja označena s sivo barvo)."]
["Legenda"]
["Obvezno polje"]
["Pogojno obvezno polje, obvezno le v kolikor to zahtevajo navodila"]
["Spustni seznam"]
["Samodejno polje"]
[]
[]
["Prijavnico v slovenskem jeziku in prijavnico v angleškem jeziku izpolnite elektronsko v Excelovi datoteki; prijavnice izpolnjene v rokopisu bodo zavržene."]
["Elektronska in tiskana različica morata biti enaki. To velja tako za prijavnico v slovenskem, kot za prijavnico v angleškem jeziku."]
["Tiskana različica je ustrezno podpisana in žigosana."]
["Vsi finančni podatki morajo biti prikazani v evrih."]
["Pred oddajo prijavnice preverite, ali so vsi podatki pravilni, vključno s številčnimi podatki, tudi tistimi, ki so izračunani avtomatsko."]
["Vsi podatki iz odprtih vlog so informacije javnega značaja, razen tistih, ki jih vlagatelj posebej označi kot poslovno skrivnost. Vlagatelji morajo podatke, ki jih smatrajo za poslovno skrivnost v svoji vlogi tako tudi označiti. Kot poslovno skrivnost se lahko označi posamezni podatek ali del vloge, ne more pa se nanašati na celotno vlogo in na podatke, ki so potrebni za oceno vloge po merilih javnega razpisa."]
["Pošljite en izvod v celoti izpolnjene prijavnice v slovenskem IN en izvod v celoti izpolnjene prijavnice v angleškem jeziku v tiskani različici IN en izvod v elektronski različici (na CD, DVD ali USB ključu), skupaj z ostalo dokumentacijo na naslov:      "]
["Ministrstvo za gospodarski razvoj in tehnologijo\nKotnikova ulica 5\n1000 Ljubljana\n"]
[]
["Tehnični napotki pri elektronskem izpolnjevanju prijavnice:"]
["Prijavnica je v standardnem programskem orodju Microsoft Excel. Pred izpolnjevanjem prijavnice, najprej stisnite »Omogoči vsebino«."]
["V prijavnici najprej v poglavju 2 - Osnovne informacije izberite področje in pod-področje razpisa, na katerega se prijavlja projekt. Nadaljnja struktura prijavnice je namreč odvisna in se prilagodi izbranemu področju. "]
["Oblike (npr. širina, višina) elementov prijavnice (vrstice, stolpci) ni mogoč spreminjati, ker je zaščitena."]
["S klikom na polje s spustnim seznamom, označeno z rumeno barvo, se na desni strani polja pojavi puščica. V kolikor še enkrat kliknete na isto polje ali na puščico, se pojavi vsebina spustnega seznama. S spustnega seznama morate vedno izbrati eno izmed naštetih možnosti"]
["Ko želite narediti novo vrstico, držite tipko Alt in pritisnete Enter ter nadaljujete s pisanjem."]
["Po zavihkih se lahko premikate z uporabo krmilnika, ki ga najdete v spodnjem levem kotu Excela."]
["Prijavnici v tiskani in elektronski različici morata biti enaki. Da ne pride do izgube podatkov v tiskanem izpisu, se držite velikosti polj za izpolnjevanje, četudi prijavnica omogoča, da jo izpolnjujete tudi pod to točko. Velikost polj je že prilagojena dopustnemu številu znakov posameznega polja oz. celice."]
["Ne pozabite sproti shranjevati vpisanih podatkov."]
["V primeru problemov ali sporočil o napaki (kot je Visual Basic) prosimo, da se obrnite na nosilca programa."]

{"sheet":"Osnovne informacije","index":4,"n_rows":38,"n_cols":5,"rows_kept":38,"cut":false,"hidden":false,"merged":[[2,0,2,1]]}
["2. Osnovne informacije"]
[]
["Navedite naslov projekta in njegov akronim. Izberite področje in pod-področje razpisa. NAvedite celotno vrednost projekta. Izpolnite podatke o trajanju projekta, pri čemer upoštevajte, da mora projekt trajati najmanj 12 mesecev, a ne dlje kot do 30. 4. 2016. Finančni podatki se bodo prenesli samodejno, ko bo izpolnjen finančni načrt."]
[]
[]
[]
["Naslov projekta",null,null,"Vpišite naslov projekta (največ 200 znakov)"]
["Akronim projekta",null,null,"Vpišite akronim projekta (največ 50 znakov)"]
["Program","Norveški finančni mehanizem 2009-2014"]
["Področji razpisa v sklopu A","Pobude za javno zdravje",null,"Izberite eno od možnosti"]
["Pod-področje »Pobude za javno zdravje«","Izboljšanje storitev na področju duševnega zdravja",null,"Izberite eno od možnosti"]
["Pod-področje »Enakost spolov«","Odločanje na gospodarskem področju",null,"Izberite eno od možnosti"]
["Celotna vrednost projekta",null,null,"Navedite tako upravičene, kot tudi morebitne neupravičene stroške projekta, ki bodo nastali v obdobju trajanja projekta."]
["Skupni upravičeni stroški projekta ",{"$f":"'Finančni načrt'!N27","v":0},null,"Vrednosti se avtomatsko prenesejo iz ustreznih zavihkov, ko jih izpolnete"]
["Zaprošena višina nepovratnih sredstev sofinanciranja projekta",{"$f":"'Finančni načrt'!N29","v":0},null,"Vrednosti se avtomatsko prenesejo iz ustreznih zavihkov, ko jih izpolnete"]
["Delež nepovratnih sredstev sofinanciranja projektov",{"$f":"'Finančni načrt'!O29","v":{"$error":"#DIV/0!"}},null,"Vrednosti se avtomatsko prenesejo iz ustreznih zavihkov, ko jih izpolnete"]
["(B/Ax100) ",null,null,"Vrednosti se avtomatsko prenesejo iz ustreznih zavihkov, ko jih izpolnete"]
["Višina lastne udeležbe v EUR ",{"$f":"'Finančni načrt'!N28","v":0},null,"Vrednosti se avtomatsko prenesejo iz ustreznih zavihkov, ko jih izpolnete"]
["Delež lastne udeležbe ",{"$f":"'Finančni načrt'!O28","v":{"$error":"#DIV/0!"}},null,"Vrednosti se avtomatsko prenesejo iz ustreznih zavihkov, ko jih izpolnete"]
["Trajanje projekta ",{"$f":"DATEDIF(B21,B22,\"y\") & \" let, \" & DATEDIF(B21,B22,\"ym\") & \" mesecev, \" & DATEDIF(B21,B22,\"md\") & \" dni\"","v":"2 let, 3 mesecev, 28 dni"},null,"Trajanje se izračuna avtomatsko, ko izberete Začetek in Zaključek",{"$f":"IF((DATEDIF(B21,B22,\"m\") < 12),\"Projekt mora trajati vsaj 12 mesecev!\",\"\")","v":""}]
["Začetek","01.01.2014",null,"Izberite datum"]
["Zaključek","29.04.2016",null,"Izberite datum"]
[]
[]
[]
[]
["SKRITO"]
[]
["Področje razpisa (1 ali 2)",{"$f":"(IF(B10=\"Enakost spolov\",2,1))","v":1}]
["Podpodročje razpisa 1",{"$f":"IF(B11=\"Zmanjševanje razlik v zdravju med skupinami uporabnikov\",1,IF(B11=\"Preprečevanje bolezni, povezanih z življenjskim slogom\",2,IF(B11=\"Izboljšanje storitev na področju duševnega zdravja\",3,0)))","v":3}]
["Podpodročje razpisa 2",{"$f":"IF(B12=\"Odločanje na gospodarskem področju\",4,IF(B12=\"Odločanje na političnem področju\",5,IF(B12=\"Usklajevanje poklicnega in družinskega življenja\",6,0)))","v":4}]
["Skupno področje razpisa",{"$f":"IF(B29=1,B30,IF(B29=2,B31,0))","v":3}]
["Polno ime",{"$f":"(IF(B10=\"Enakost spolov\",B12,B11))","v":"Izboljšanje storitev na področju duševnega zdravja"}]
[]
[]
[]
["KOMENTARJI"]
["B32 je vrednost podpročja, B28 pa področja"]

{"sheet":"Povzetek projekta","index":5,"n_rows":6,"n_cols":4,"rows_kept":6,"cut":false,"hidden":false,"merged":[[2,0,2,1],[5,0,5,1]]}
["3. Povzetek projekta"]
[]
["V povzetku projekta navedite njegovo utemeljitev, splošne cilje in specifične, v kolikor obstajajo. Navedite ciljne skupine, pričakovane učinke, ključne rezultate in glavne dejavnosti projekta. Opišite tudi, kako bo projekt prispeval k bilateralnim odnosom in kaj se bo s partnerstvom doseglo."]
[]
["Povzetek projekta "]
[null,null,null,"Največ 1000 znakov"]

{"sheet":"Projektno partnerstvo","index":6,"n_rows":527,"n_cols":12,"rows_kept":527,"cut":false,"hidden":false,"merged":[[510,1,510,4],[511,1,511,4],[512,1,512,4],[515,0,515,4],[516,0,516,4],[504,1,504,4],[505,1,505,4],[506,1,506,4],[507,1,507,4],[508,1,508,4],[509,1,509,4],[498,1,498,4],[499,1,499,4],[500,1,500,4],[501,1,501,4],[502,1,502,4],[503,1,503,4],[492,1,492,4],[493,1,493,4],[494,1,494,4],[495,1,495,4],[496,1,496,4],[497,1,497,4],[482,1,482,4],[483,1,483,4],[486,0,486,4],[487,0,487,4],[490,1,490,4],[491,1,491,4],[476,1,476,4],[477,1,477,4],[478,1,478,4],[479,1,479,4],[480,1,480,4],[481,1,481,4],[470,1,470,4],[471,1,471,4],[472,1,472,4],[473,1,473,4],[474,1,474,4],[475,1,475,4],[464,1,464,4],[465,1,465,4],[466,1,466,4],[467,1,467,4],[468,1,468,4],[469,1,469,4],[454,1,454,4],[457,0,457,4],[458,0,458,4],[461,1,461,4],[462,1,462,4],[463,1,463,4],[448,1,448,4],[449,1,449,4],[450,1,450,4],[451,1,451,4],[452,1,452,4],[453,1,453,4],[442,1,442,4],[443,1,443,4],[444,1,444,4],[445,1,445,4],[446,1,446,4],[447,1,447,4],[436,1,436,4],[437,1,437,4],[438,1,438,4],[439,1,439,4],[440,1,440,4],[441,1,441,4],[428,0,428,4],[429,0,429,4],[432,1,432,4],[433,1,433,4],[434,1,434,4],[435,1,435,4],[420,1,420,4],[421,1,421,4],[422,1,422,4],[423,1,423,4],[424,1,424,4],[425,1,425,4],[414,1,414,4],[415,1,415,4],[416,1,416,4],[417,1,417,4],[418,1,418,4],[419,1,419,4],[408,1,408,4],[409,1,409,4],[410,1,410,4],[411,1,411,4],[412,1,412,4],[413,1,413,4],[400,0,400,4],[403,1,403,4],[404,1,404,4],[405,1,405,4],[406,1,406,4],[407,1,407,4],[392,1,392,4],[393,1,393,4],[394,1,394,4],[395,1,395,4],[396,1,396,4],[399,0,399,4],[386,1,386,4],[387,1,387,4],[388,1,388,4],[389,1,389,4],[390,1,390,4],[391,1,391,4],[380,1,380,4],[381,1,381,4],[382,1,382,4],[383,1,383,4],[384,1,384,4],[385,1,385,4],[374,1,374,4],[375,1,375,4],[376,1,376,4],[377,1,377,4],[378,1,378,4],[379,1,379,4],[364,1,364,4],[365,1,365,4],[366,1,366,4],[367,1,367,4],[370,0,370,4],[371,0,371,4],[358,1,358,4],[359,1,359,4],[360,1,360,4],[361,1,361,4],[362,1,362,4],[363,1,363,4],[352,1,352,4],[353,1,353,4],[354,1,354,4],[355,1,355,4],[356,1,356,4],[357,1,357,4],[84,1,84,4],[85,1,85,4],[86,1,86,4],[87,1,87,4],[88,1,88,4],[89,1,89,4],[90,1,90,4],[91,1,91,4],[92,1,92,4],[93,1,93,4],[94,1,94,4],[95,1,95,4],[96,1,96,4],[97,1,97,4],[98,1,98,4],[99,1,99,4],[100,1,100,4],[101,1,101,4],[102,1,102,4],[103,1,103,4],[104,1,104,4],[105,1,105,4],[106,1,106,4],[109,0,109,4],[110,0,110,4],[118,1,118,4],[119,1,119,4],[120,1,120,4],[121,1,121,4],[122,1,122,4],[123,1,123,4],[124,1,124,4],[125,1,125,4],[126,1,126,4],[127,1,127,4],[128,1,128,4],[145,1,145,4],[146,1,146,4],[147,1,147,4],[148,1,148,4],[149,1,149,4],[150,1,150,4],[129,1,129,4],[130,1,130,4],[131,1,131,4],[132,1,132,4],[133,1,133,4],[134,1,134,4],[135,1,135,4],[138,0,138,4],[139,0,139,4],[163,1,163,4],[164,1,164,4],[167,0,167,4],[168,0,168,4],[113,1,113,4],[114,1,114,4],[115,1,115,4],[116,1,116,4],[117,1,117,4],[157,1,157,4],[158,1,158,4],[159,1,159,4],[160,1,160,4],[161,1,161,4],[162,1,162,4],[151,1,151,4],[152,1,152,4],[153,1,153,4],[154,1,154,4],[155,1,155,4],[142,1,142,4],[143,1,143,4],[144,1,144,4],[156,1,156,4],[171,1,171,4],[172,1,172,4],[173,1,173,4],[174,1,174,4],[175,1,175,4],[176,1,176,4],[177,1,177,4],[178,1,178,4],[179,1,179,4],[180,1,180,4],[181,1,181,4],[182,1,182,4],[183,1,183,4],[184,1,184,4],[185,1,185,4],[186,1,186,4],[187,1,187,4],[188,1,188,4],[189,1,189,4],[190,1,190,4],[191,1,191,4],[192,1,192,4],[193,1,193,4],[196,0,196,4],[197,0,197,4],[200,1,200,4],[201,1,201,4],[202,1,202,4],[203,1,203,4],[204,1,204,4],[205,1,205,4],[206,1,206,4],[207,1,207,4],[208,1,208,4],[209,1,209,4],[210,1,210,4],[211,1,211,4],[212,1,212,4],[213,1,213,4],[214,1,214,4],[215,1,215,4],[216,1,216,4],[217,1,217,4],[218,1,218,4],[219,1,219,4],[220,1,220,4],[221,1,221,4],[222,1,222,4],[225,0,225,4],[226,0,226,4],[229,1,229,4],[230,1,230,4],[231,1,231,4],[232,1,232,4],[233,1,233,4],[234,1,234,4],[235,1,235,4],[236,1,236,4],[237,1,237,4],[238,1,238,4],[239,1,239,4],[240,1,240,4],[241,1,241,4],[242,1,242,4],[243,1,243,4],[244,1,244,4],[245,1,245,4],[246,1,246,4],[247,1,247,4],[248,1,248,4],[249,1,249,4],[250,1,250,4],[251,1,251,4],[254,0,254,4],[255,0,255,4],[258,1,258,4],[259,1,259,4],[260,1,260,4],[261,1,261,4],[262,1,262,4],[263,1,263,4],[264,1,264,4],[265,1,265,4],[266,1,266,4],[267,1,267,4],[268,1,268,4],[269,1,269,4],[270,1,270,4],[271,1,271,4],[272,1,272,4],[273,1,273,4],[274,1,274,4],[275,1,275,4],[276,1,276,4],[277,1,277,4],[278,1,278,4],[279,1,279,4],[280,1,280,4],[283,0,283,4],[35,1,35,4],[317,1,317,4],[72,1,72,4],[73,1,73,4],[74,1,74,4],[75,1,75,4],[69,1,69,4],[70,1,70,4],[71,1,71,4],[304,1,304,4],[305,1,305,4],[306,1,306,4],[307,1,307,4],[308,1,308,4],[309,1,309,4],[312,0,312,4],[313,0,313,4],[316,1,316,4],[295,1,295,4],[296,1,296,4],[297,1,297,4],[298,1,298,4],[299,1,299,4],[300,1,300,4],[12,1,12,4],[13,1,13,4],[14,1,14,4],[15,1,15,4],[16,1,16,4],[31,1,31,4],[32,1,32,4],[33,1,33,4],[34,1,34,4],[5,1,5,4],[6,1,6,4],[7,1,7,4],[8,1,8,4],[9,1,9,4],[10,1,10,4],[66,1,66,4],[67,1,67,4],[68,1,68,4],[65,1,65,4],[27,1,27,4],[28,1,28,4],[29,1,29,4],[30,1,30,4],[17,1,17,4],[18,1,18,4],[19,1,19,4],[20,1,20,4],[21,1,21,4],[22,1,22,4],[23,1,23,4],[24,1,24,4],[25,1,25,4],[11,1,11,4],[301,1,301,4],[302,1,302,4],[303,1,303,4],[284,0,284,4],[287,1,287,4],[288,1,288,4],[289,1,289,4],[290,1,290,4],[291,1,291,4],[292,1,292,4],[293,1,293,4],[294,1,294,4],[55,1,55,4],[56,1,56,4],[57,1,57,4],[58,1,58,4],[59,1,59,4],[60,1,60,4],[76,1,76,4],[77,1,77,4],[61,1,61,4],[62,1,62,4],[63,1,63,4],[64,1,64,4],[351,1,351,4],[345,1,345,4],[334,1,334,4],[335,1,335,4],[336,1,336,4],[337,1,337,4],[338,1,338,4],[347,1,347,4],[318,1,318,4],[325,1,325,4],[326,1,326,4],[349,1,349,4],[341,0,341,4],[342,0,342,4],[331,1,331,4],[332,1,332,4],[333,1,333,4],[350,1,350,4],[4,0,4,4],[522,0,522,4],[2,0,2,4],[40,0,40,4],[41,0,41,4],[43,0,43,4],[44,0,44,4],[47,0,47,4],[48,0,48,4],[346,1,346,4],[348,1,348,4],[26,1,26,4],[80,0,80,4],[81,0,81,4],[327,1,327,4],[328,1,328,4],[329,1,329,4],[330,1,330,4],[319,1,319,4],[320,1,320,4],[321,1,321,4],[322,1,322,4],[323,1,323,4],[324,1,324,4]]}
["4. Projektno partnerstvo"]
[]
["Zaželeno je, da projekt vključuje lokalne partnerske skupnosti med nevladnimi organizacijami, javnimi zavodi in lokalnimi skupnostmi, na področju Pobude za javno zdravje pa je zaželeno, da sloni tudi na interdisciplinarnem in med sektorskem pristopu."]
["Prijavitelj"]
["Navedite uradni naziv institucije. Zaželeno je tudi, da navedete organizacijsko enoto. Status izberete iz spustnega seznama. Navedite uradni naslov, davčno in matično številko prijavitelja. Če želite lahko napišete tudi telefonsko številko in spletno stran prijavitelja. Izpolnite podatke o odgovorni osebi institucije. Obvezno izpolnite podatke o kontaktni osebi, ki je hkrati tudi vodja projekta. Kontaktni naslov navedite le v kolikor je drugačen od uradnega. Navedite podatke o banki, pri kateri ima prijavitelj odprt račun, pri čemer mora biti sedež banke v Republiki Sloveniji.",null,null,null,null,null,null,null,null,null,null,"pravna oseba javnega prava"]
["Naziv institucije",null,null,null,null,null,null,null,null,{"$f":"IF('Osnovne informacije'!B29=1,\"L5:L7\",\"L5:L8\")","v":"L5:L7"},null,"neprofitna pravna oseba zasebnega prava, ki je nevladna organizacija"]
["Pravni status","neprofitna pravna oseba zasebnega prava, ki je nevladna organizacija",null,null,null,null,"Izberite eno od možnosti iz seznama",null,null,null,null,"neprofitna pravna oseba zasebnega prava, ki ni nevladna organizacija"]
["Uradni naslov",null,null,null,null,null,null,null,null,null,null,"profitna pravna oseba zasebnega prava"]
["Naslov"]
["Poštna številka ",null,null,null,null,null,null,null,null,56]
["Kraj"]
["Država"]
["Davčna številka"]
["Matična številka"]
["Telefon "]
["Spletna stran "]
["Odgovorna oseba institucije"]
["Ime in priimek"]
["e-pošta"]
["Kontaktna oseba"]
["Ime in priimek"]
["Telefon"]
["E-pošta"]
["Naslov"]
["Poštna številka "]
["Kraj"]
["Država"]
["Podatki o banki prijavitelja"]
["Ime banke "]
["Naslov "]
["Poštna številka "]
["Kraj"]
["Država ","Slovenija"]
["Številka računa "]
["IBAN"]
["BIC/SWIFT koda "]
[]
[]
["Opis prijavitelja "]
[]
["Opišite glavne redne dejavnosti prijavitelja, vključite tudi podatke o kadrovskih in tehničnih zmogljivostih, relevantnih za izvedbo projekta.",null,null,null,null,null,null,1]
[null,null,null,null,null,null,"Največ 3000 znakov",2]
[null,null,null,null,null,null,null,3]
["Opišite znanja in izkušnje s področja upravljanja in koordinacije projektov. Še posebej poudarite projekte financirane iz skladov EU ali drugih mednarodnih virov. Navedite podatke o ključnih projektih podobne zahtevnosti v zadnjih desetih letih, pri katerih navedite naziv projekta in njegovo vrednost, vašo vlogo in pridobljena znanja in izkušnje.",null,null,null,null,null,null,4]
[null,null,null,null,null,null,"Največ 2000 znakov",5]
[null,null,null,null,null,null,null,6]
["Prispevek prijavitelja k projektu ",null,null,null,null,null,null,7]
["Opišite pričakovan prispevek prijavitelja k projektu: njegovo vlogo in odgovornost med izvajanjem projekta. Opišite tudi h katerim rezultatom in učinkom projekta bo prispeval prijavitelj.",null,null,null,null,null,null,8]
[null,null,null,null,null,null,"Največ 2000 znakov",9]
[null,null,null,null,null,null,null,10]
["Partnerji",null,null,null,null,null,null,11]
[null,null,null,null,null,null,null,12]
["Število partnerjev",16,null,null,null,null,"Izberite število partnerjev iz seznama",13]
[null,null,null,null,null,null,null,14]
[null,null,null,null,null,null,null,15]
["Zaporedna številka partnerja",1,null,null,null,null,null,16]
["Naziv institucije",null,null,null,null,null,null,17]
["Pravni status  ","neprofitna pravna oseba zasebnega prava, ki ni nevladna organizacija",null,null,null,null,null,18]
["Uradni naslov",null,null,null,null,null,null,19]
["Naslov",null,null,null,null,null,null,20]
["Poštna številka ",null,null,null,null,null,null,21]
["Kraj",null,null,null,null,null,null,22]
["Država",null,null,null,null,null,null,23]
["Davčna št. ",null,null,null,null,null,null,24]
["Matična št.",null,null,null,null,null,null,25]
["Telefon ",null,null,null,null,null,null,26]
["Spletna stran ",null,null,null,null,null,null,27]
["Odgovorna oseba institucije ",null,null,null,null,null,null,28]
["Ime in priimek",null,null,null,null,null,null,29]
["Elektronski naslov",null,null,null,null,null,null,30]
["Kontaktna oseba",null,null,null,null,null,null,31]
["Ime in priimek",null,null,null,null,null,null,32]
["Telefon",null,null,null,null,null,null,33]
["Elektronski naslov",null,null,null,null,null,null,34]
["Naslov",null,null,null,null,null,null,35]
["Poštna številka ",null,null,null,null,null,null,36]
["Kraj",null,null,null,null,null,null,37]
["Država",null,null,null,null,null,null,38]
[null,null,null,null,null,null,null,39]
["Prispevek partnerja k projektu ",null,null,null,null,null,null,40]
["Opišite pričakovan prispevek partnerja k projektu: navedite razloge za vključitev posameznega projektnega partnerja, njegovo vlogo in odgovornost med izvajanjem projekta. Opišite tudi h katerim rezultatom in učinkom projekta bo prispeval posamezen projektni partner.",null,null,null,null,null,null,41]
[null,null,null,null,null,null,"Največ 2000 znakov",42]
[null,null,null,null,null,null,null,43]
[null,null,null,null,null,null,null,44]
["Zaporedna številka partnerja",2,null,null,null,null,null,45]
["Naziv institucije",null,null,null,null,null,null,46]
["Pravni status  ","neprofitna pravna oseba zasebnega prava, ki ni nevladna organizacija"]
["Uradni naslov"]
["Naslov"]
["Poštna številka "]
["Kraj"]
["Država"]
["Davčna št. "]
["Matična št."]
["Telefon "]
["Spletna stran "]
["Odgovorna oseba institucije "]
["Ime in priimek"]
["Elektronski naslov"]
["Kontaktna oseba"]
["Ime in priimek"]
["Telefon"]
["Elektronski naslov"]
["Naslov"]
["Poštna številka "]
["Kraj"]
["Država"]
[]
["Prispevek partnerja k projektu "]
["Opišite pričakovan prispevek partnerja k projektu: navedite razloge za vključitev posameznega projektnega partnerja, njegovo vlogo in odgovornost med izvajanjem projekta. Opišite tudi h katerim rezultatom in učinkom projekta bo prispeval posamezen projektni partner."]
[null,null,null,null,null,null,"Največ 2000 znakov"]
[]
[]
["Zaporedna številka partnerja",3]
["Naziv institucije"]
["Pravni status  ","neprofitna pravna oseba zasebnega prava, ki ni nevladna organizacija"]
["Uradni naslov"]
["Naslov"]
["Poštna številka "]
["Kraj"]
["Država"]
["Davčna št. "]
["Matična št."]
["Telefon "]
["Spletna stran "]
["Odgovorna oseba institucije "]
["Ime in priimek"]
["Elektronski naslov"]
["Kontaktna oseba"]
["Ime in priimek"]
["Telefon"]
["Elektronski naslov"]
["Naslov"]
["Poštna številka "]
["Kraj"]
["Država"]
[]
["Prispevek partnerja k projektu "]
["Opišite pričakovan prispevek partnerja k projektu: navedite razloge za vključitev posameznega projektnega partnerja, njegovo vlogo in odgovornost med izvajanjem projekta. Opišite tudi h katerim rezultatom in učinkom projekta bo prispeval posamezen projektni partner."]
[]
[]
[]
["Zaporedna številka partnerja",4]
["Naziv institucije"]
["Pravni status  ","neprofitna pravna oseba zasebnega prava, ki ni nevladna organizacija"]
["Uradni naslov"]
["Naslov"]
["Poštna številka "]
["Kraj"]
["Država"]
["Davčna št. "]
["Matična št."]
["Telefon "]
["Spletna stran "]
["Odgovorna oseba institucije "]
["Ime in priimek"]
["Elektronski naslov"]
["Kontaktna oseba"]
["Ime in priimek"]
["Telefon"]
["Elektronski naslov"]
["Naslov"]
["Poštna številka "]
["Kraj"]
["Država"]
[]
["Prispevek partnerja k projektu "]
["Opišite pričakovan prispevek partnerja k projektu: navedite razloge za vključitev posameznega projektnega partnerja, njegovo vlogo in odgovornost med izvajanjem projekta. Opišite tudi h katerim rezultatom in učinkom projekta bo prispeval posamezen projektni partner."]
[null,null,null,null,null,null,"Največ 2000 znakov"]
[]
[]
["Zaporedna številka partnerja",5]
["Naziv institucije"]
["Pravni status  ","neprofitna pravna oseba zasebnega prava, ki ni nevladna organizacija"]
["Uradni naslov"]
["Naslov"]
["Poštna številka "]
["Kraj"]
["Država"]
["Davčna št. "]
["Matična št."]
["Telefon "]
["Spletna stran "]
["Odgovorna oseba institucije "]
["Ime in priimek"]
["Elektronski naslov"]
["Kontaktna oseba"]
["Ime in priimek"]
["Telefon"]
["Elektronski naslov"]
["Naslov"]
["Poštna številka "]
["Kraj"]
["Država"]
[]
["Prispevek partnerja k projektu "]
["Opišite pričakovan prispevek partnerja k projektu: navedite razloge za vključitev posameznega projektnega partnerja, njegovo vlogo in odgovornost med izvajanjem projekta. Opišite tudi h katerim rezultatom in učinkom projekta bo prispeval posamezen projektni partner."]
[null,null,null,null,null,null,"Največ 2000 znakov"]
[]
[]
["Zaporedna številka partnerja",6]
["Naziv institucije"]
["Pravni status  ","neprofitna pravna oseba zasebnega prava, ki ni nevladna organizacija"]
["Uradni naslov"]
["Naslov"]
["Poštna številka "]
["Kraj"]
["Država"]
["Davčna št. "]
["Matična št."]
["Telefon "]
["Spletna stran "]
["Odgovorna oseba institucije "]
["Ime in priimek"]
["Elektronski naslov"]
["Kontaktna oseba"]
["Ime in priimek"]
["Telefon"]
["Elektronski naslov"]
["Naslov"]
["Poštna številka "]
["Kraj"]
["Država"]
[]
["Prispevek partnerja k projektu "]
["Opišite pričakovan prispevek partnerja k projektu: navedite razloge za vključitev posameznega projektnega partnerja, njegovo vlogo in odgovornost med izvajanjem projekta. Opišite tudi h katerim rezultatom in učinkom projekta bo prispeval posamezen projektni partner."]
[null,null,null,null,null,null,"Največ 2000 znakov"]
[]
[]
["Zaporedna številka partnerja",7]
["Naziv institucije"]
["Pravni status  ","neprofitna pravna oseba zasebnega prava, ki ni nevladna organizacija"]
["Uradni naslov"]
["Naslov"]
["Poštna številka "]
["Kraj"]
["Država"]
["Davčna št. "]
["Matična št."]
["Telefon "]
["Spletna stran "]
["Odgovorna oseba institucije "]
["Ime in priimek"]
["Elektronski naslov"]
["Kontaktna oseba"]
["Ime in priimek"]
["Telefon"]
["Elektronski naslov"]
["Naslov"]
["Poštna številka "]
["Kraj"]
["Država"]
[]
["Prispevek partnerja k projektu "]
["Opišite pričakovan prispevek partnerja k projektu: navedite razloge za vključitev posameznega projektnega partnerja, njegovo vlogo in odgovornost med izvajanjem projekta. Opišite tudi h katerim rezultatom in učinkom projekta bo prispeval posamezen projektni partner."]
[null,null,null,null,null,null,"Največ 2000 znakov"]
[]
[]
["Zaporedna številka partnerja",8]
["Naziv institucije"]
["Pravni status  ","neprofitna pravna oseba zasebnega prava, ki ni nevladna organizacija"]
["Uradni naslov"]
["Naslov"]
["Poštna številka "]
["Kraj"]
["Država"]
["Davčna št. "]
["Matična št."]
["Telefon "]
["Spletna stran "]
["Odgovorna oseba institucije "]
["Ime in priimek"]
["Elektronski naslov"]
["Kontaktna oseba"]
["Ime in priimek"]
["Telefon"]
["Elektronski naslov"]
["Naslov"]
["Poštna številka "]
["Kraj"]
["Država"]
[]
["Prispevek partnerja k projektu "]
["Opišite pričakovan prispevek partnerja k projektu: navedite razloge za vključitev posameznega projektnega partnerja, njegovo vlogo in odgovornost med izvajanjem projekta. Opišite tudi h katerim rezultatom in učinkom projekta bo prispeval posamezen projektni partner."]
[null,null,null,null,null,null,"Največ 2000 znakov"]
[]
[]
["Zaporedna številka partnerja",9]
["Naziv institucije"]
["Pravni status  ","neprofitna pravna oseba zasebnega prava, ki ni nevladna organizacija"]
["Uradni naslov"]
["Naslov"]
["Poštna številka "]
["Kraj"]
["Država"]
["Davčna št. "]
["Matična št."]
["Telefon "]
["Spletna stran "]
["Odgovorna oseba institucije "]
["Ime in priimek"]
["Elektronski naslov"]
["Kontaktna oseba"]
["Ime in priimek"]
["Telefon"]
["Elektronski naslov"]
["Naslov"]
["Poštna številka "]
["Kraj"]
["Država"]
[]
["Prispevek partnerja k projektu "]
["Opišite pričakovan prispevek partnerja k projektu: navedite razloge za vključitev posameznega projektnega partnerja, njegovo vlogo in odgovornost med izvajanjem projekta. Opišite tudi h katerim rezultatom in učinkom projekta bo prispeval posamezen projektni partner."]
[null,null,null,null,null,null,"Največ 2000 znakov"]
[]
[]
["Zaporedna številka partnerja",10]
["Naziv institucije"]
["Pravni status  ","neprofitna pravna oseba zasebnega prava, ki ni nevladna organizacija"]
["Uradni naslov"]
["Naslov"]
["Poštna številka "]
["Kraj"]
["Država"]
["Davčna št. "]
["Matična št."]
["Telefon "]
["Spletna stran "]
["Odgovorna oseba institucije "]
["Ime in priimek"]
["Elektronski naslov"]
["Kontaktna oseba"]
["Ime in priimek"]
["Telefon"]
["Elektronski naslov"]
["Naslov"]
["Poštna številka "]
["Kraj"]
["Država"]
[]
["Prispevek partnerja k projektu "]
["Opišite pričakovan prispevek partnerja k projektu: navedite razloge za vključitev posameznega projektnega partnerja, njegovo vlogo in odgovornost med izvajanjem projekta. Opišite tudi h katerim rezultatom in učinkom projekta bo prispeval posamezen projektni partner."]
[null,null,null,null,null,null,"Največ 2000 znakov"]
[]
[]
["Zaporedna številka partnerja",11]
["Naziv institucije"]
["Pravni status  ","neprofitna pravna oseba zasebnega prava, ki ni nevladna organizacija"]
["Uradni naslov"]
["Naslov"]
["Poštna številka "]
["Kraj"]
["Država"]
["Davčna št. "]
["Matična št."]
["Telefon "]
["Spletna stran "]
["Odgovorna oseba institucije "]
["Ime in priimek"]
["Elektronski naslov"]
["Kontaktna oseba"]
["Ime in priimek"]
["Telefon"]
["Elektronski naslov"]
["Naslov"]
["Poštna številka "]
["Kraj"]
["Država"]
[]
["Prispevek partnerja k projektu "]
["Opišite pričakovan prispevek partnerja k projektu: navedite razloge za vključitev posameznega projektnega partnerja, njegovo vlogo in odgovornost med izvajanjem projekta. Opišite tudi h katerim rezultatom in učinkom projekta bo prispeval posamezen projektni partner."]
[null,null,null,null,null,null,"Največ 2000 znakov"]
[]
[]
["Zaporedna številka partnerja",12]
["Naziv institucije"]
["Pravni status  ","neprofitna pravna oseba zasebnega prava, ki ni nevladna organizacija"]
["Uradni naslov"]
["Naslov"]
["Poštna številka "]
["Kraj"]
["Država"]
["Davčna št. "]
["Matična št."]
["Telefon "]
["Spletna stran "]
["Odgovorna oseba institucije "]
["Ime in priimek"]
["Elektronski naslov"]
["Kontaktna oseba"]
["Ime in priimek"]
["Telefon"]
["Elektronski naslov"]
["Naslov"]
["Poštna številka "]
["Kraj"]
["Država"]
[]
["Prispevek partnerja k projektu "]
["Opišite pričakovan prispevek partnerja k projektu: navedite razloge za vključitev posameznega projektnega partnerja, njegovo vlogo in odgovornost med izvajanjem projekta. Opišite tudi h katerim rezultatom in učinkom projekta bo prispeval posamezen projektni partner."]
[null,null,null,null,null,null,"Največ 2000 znakov"]
[]
[]
["Zaporedna številka partnerja",13]
["Naziv institucije"]
["Pravni status  ","neprofitna pravna oseba zasebnega prava, ki ni nevladna organizacija"]
["Uradni naslov"]
["Naslov"]
["Poštna številka "]
["Kraj"]
["Država"]
["Davčna št. "]
["Matična št."]
["Telefon "]
["Spletna stran "]
["Odgovorna oseba institucije "]
["Ime in priimek"]
["Elektronski naslov"]
["Kontaktna oseba"]
["Ime in priimek"]
["Telefon"]
["Elektronski naslov"]
["Naslov"]
["Poštna številka "]
["Kraj"]
["Država"]
[]
["Prispevek partnerja k projektu "]
["Opišite pričakovan prispevek partnerja k projektu: navedite razloge za vključitev posameznega projektnega partnerja, njegovo vlogo in odgovornost med izvajanjem projekta. Opišite tudi h katerim rezultatom in učinkom projekta bo prispeval posamezen projektni partner."]
[null,null,null,null,null,null,"Največ 2000 znakov"]
[]
[]
["Zaporedna številka partnerja",14]
["Naziv institucije"]
["Pravni status  ","neprofitna pravna oseba zasebnega prava, ki ni nevladna organizacija"]
["Uradni naslov"]
["Naslov"]
["Poštna številka "]
["Kraj"]
["Država"]
["Davčna št. "]
["Matična št."]
["Telefon "]
["Spletna stran "]
["Odgovorna oseba institucije "]
["Ime in priimek"]
["Elektronski naslov"]
["Kontaktna oseba"]
["Ime in priimek"]
["Telefon"]
["Elektronski naslov"]
["Naslov"]
["Poštna številka "]
["Kraj"]
["Država"]
[]
["Prispevek partnerja k projektu "]
["Opišite pričakovan prispevek partnerja k projektu: navedite razloge za vključitev posameznega projektnega partnerja, njegovo vlogo in odgovornost med izvajanjem projekta. Opišite tudi h katerim rezultatom in učinkom projekta bo prispeval posamezen projektni partner."]
[null,null,null,null,null,null,"Največ 2000 znakov"]
[]
[]
["Zaporedna številka partnerja",15]
["Naziv institucije"]
["Pravni status  ","neprofitna pravna oseba zasebnega prava, ki ni nevladna organizacija"]
["Uradni naslov"]
["Naslov"]
["Poštna številka "]
["Kraj"]
["Država"]
["Davčna št. "]
["Matična št."]
["Telefon "]
["Spletna stran "]
["Odgovorna oseba institucije "]
["Ime in priimek"]
["Elektronski naslov"]
["Kontaktna oseba"]
["Ime in priimek"]
["Telefon"]
["Elektronski naslov"]
["Naslov"]
["Poštna številka "]
["Kraj"]
["Država"]
[]
["Prispevek partnerja k projektu "]
["Opišite pričakovan prispevek partnerja k projektu: navedite razloge za vključitev posameznega projektnega partnerja, njegovo vlogo in odgovornost med izvajanjem projekta. Opišite tudi h katerim rezultatom in učinkom projekta bo prispeval posamezen projektni partner."]
[null,null,null,null,null,null,"Največ 2000 znakov"]
[]
[]
["Zaporedna številka partnerja",16]
["Naziv institucije"]
["Pravni status  ","neprofitna pravna oseba zasebnega prava, ki ni nevladna organizacija"]
["Uradni naslov"]
["Naslov"]
["Poštna številka "]
["Kraj"]
["Država"]
["Davčna št. "]
["Matična št."]
["Telefon "]
["Spletna stran "]
["Odgovorna oseba institucije "]
["Ime in priimek"]
["Elektronski naslov"]
["Kontaktna oseba"]
["Ime in priimek"]
["Telefon"]
["Elektronski naslov"]
["Naslov"]
["Poštna številka "]
["Kraj"]
["Država"]
[]
["Prispevek partnerja k projektu "]
["Opišite pričakovan prispevek partnerja k projektu: navedite razloge za vključitev posameznega projektnega partnerja, njegovo vlogo in odgovornost med izvajanjem projekta. Opišite tudi h katerim rezultatom in učinkom projekta bo prispeval posamezen projektni partner."]
[null,null,null,null,null,null,"Največ 2000 znakov"]
[]
[]
["Usposobljenost projektne skupine za izvedbo projekta"]
[]
["Usposobljenost projektne skupine za izvedbo projekta"]
["Navedite vse člane projektne ekipe prijavitelja in partnerjev (Partner 1, Partner 2, itd.), ki bodo sodelovali pri izvedbi projekta. Naštejte vse predvidene osebe, tudi če vsa imena še niso znana. Navedite njihovo vlogo v projektu (npr. vodja projekta, pravnik, finančnik, izvajalec projekta ipd.) in njihova znanja ter izkušnje s pod-področja razpisa, pomembne za izvedbo projekta. "]
[]
[null,null,null,"Izberite število vnosov",10]
["Ime in priimek","Prijavitelj/\nšt. partnerja",null,"Vloga v projektu","Ključna znanja s pod-področja razpisa pombembnega za izvedbo projekta"]
[null,null,null,null,null,null,"Največ 500 znakov za opis ključnih znanj"]

{"sheet":"data_pobude","index":7,"n_rows":51,"n_cols":12,"rows_kept":51,"cut":false,"hidden":true,"merged":[]}
["Range-i za posamezne učinke",null,null,null,null,null,null,null,"Osnovne informacije'!B31","2. področje_a"]
["dod. Polj","podrocje",null,"data_field",null,null,null,null,{"$f":"'Osnovne informacije'!B32","v":3},null,"Zmanjševanje razlik v zdravju med skupinami uporabnikov",1]
[1,1,"46-50","F34",null,null,null,null,null,null,"Preprečevanje bolezni, povezanih z življenjskim slogom",2]
[2,1,"51-55",null,null,null,null,null,null,null,"Izboljšanje storitev na področju duševnega zdravja",3]
[3,1,"56-60",null,null,null,null,null,null,"2. področje_b"]
[4,1,"61-65",null,null,null,null,null,null,null,"Odločanje na gospodarskem področju",4]
[5,1,"66-70",null,null,null,null,null,null,null,"Odločanje na političnem področju",5]
[null,null,null,null,null,null,null,null,null,null,"Usklajevanje poklicnega in družinskega življenja",6]
[1,2,"84-88","F72"]
[2,2,"89-93"]
[3,2,"94-98"]
[4,2,"99-103"]
[5,2,"104-108"]
[]
[1,3,"122-126","F110"]
[2,3,"127-131"]
[3,3,"132-136"]
[4,3,"137-141"]
[5,3,"142-146"]
[]
[1,4,"168-172","F161"]
[2,4,"173-177"]
[3,4,"178-182"]
[4,4,"183-187"]
[5,4,"188-192"]
[]
[1,5,"201-205","F194"]
[2,5,"206-210"]
[3,5,"211-215"]
[4,5,"216-220"]
[5,5,"221-225"]
[]
[1,6,"234-238","F227"]
[2,6,"239-243"]
[3,6,"244-248"]
[4,6,"249-253"]
[5,6,"254-258"]
[]
[]
[]
["5.4 hide all",null,31,258]
[]
[1,null,31,70]
[2,null,72,108]
[3,null,110,156]
[4,null,161,192]
[5,null,194,225]
[6,null,227,258]
[]
["header 1",null,158,160]
["header 2",null,31,33]

{"sheet":"Opis projekta","index":8,"n_rows":284,"n_cols":18,"rows_kept":284,"cut":false,"hidden":false,"merged":[[109,10,110,21],[263,5,267,5],[258,4,262,4],[258,5,262,5],[220,0,224,0],[220,3,224,3],[220,4,224,4],[220,5,224,5],[215,4,219,4],[215,5,219,5],[220,1,224,1],[220,2,224,2],[230,0,234,0],[230,3,234,3],[230,4,234,4],[230,5,234,5],[225,0,229,0],[225,3,229,3],[225,4,229,4],[225,5,229,5],[225,1,229,1],[225,2,229,2],[230,1,234,1],[230,2,234,2],[240,0,244,0],[205,5,209,5],[210,4,214,4],[210,5,214,5],[203,0,203,3],[205,4,209,4],[205,0,219,0],[205,1,219,1],[205,2,219,2],[205,3,219,3],[197,5,201,5],[192,0,196,0],[192,3,196,3],[192,4,196,4],[192,5,196,5],[177,0,181,0],[177,3,181,3],[177,4,181,4],[177,5,181,5],[182,0,186,0],[182,1,186,1],[182,2,186,2],[182,3,186,3],[182,4,186,4],[182,5,186,5],[159,4,159,5],[146,0,150,0],[146,1,150,1],[146,2,150,2],[146,3,150,3],[146,4,150,4],[157,6,159,8],[162,4,166,4],[162,5,166,5],[146,5,150,5],[160,0,160,3],[157,0,158,0],[162,0,176,0],[167,4,171,4],[167,5,171,5],[172,4,176,4],[172,5,176,5],[136,5,140,5],[141,0,145,0],[141,1,145,1],[141,2,145,2],[141,3,145,3],[141,4,145,4],[141,5,145,5],[136,0,140,0],[136,1,140,1],[136,2,140,2],[136,3,140,3],[136,4,140,4],[126,4,130,4],[126,5,130,5],[131,0,135,0],[131,1,135,1],[131,2,135,2],[131,3,135,3],[131,4,135,4],[131,5,135,5],[111,1,115,1],[111,2,115,2],[111,3,115,3],[111,4,115,4],[116,1,120,1],[116,2,120,2],[116,3,120,3],[116,4,120,4],[98,5,102,5],[109,0,109,3],[151,0,155,0],[151,1,155,1],[151,2,155,2],[151,3,155,3],[151,4,155,4],[151,5,155,5],[121,0,125,0],[121,1,125,1],[121,2,125,2],[121,3,125,3],[121,4,125,4],[121,5,125,5],[126,0,130,0],[126,1,130,1],[98,0,102,0],[98,1,102,1],[98,2,102,2],[116,5,120,5],[111,5,115,5],[111,0,120,0],[126,2,130,2],[126,3,130,3],[73,0,77,0],[73,5,77,5],[93,5,97,5],[83,0,87,0],[83,1,87,1],[83,2,87,2],[83,3,87,3],[83,4,87,4],[83,5,87,5],[88,0,92,0],[88,1,92,1],[88,2,92,2],[88,3,92,3],[88,4,92,4],[88,5,92,5],[40,3,44,3],[40,4,44,4],[40,5,44,5],[45,3,49,3],[93,2,97,2],[93,3,97,3],[93,4,97,4],[103,1,107,1],[103,2,107,2],[103,3,107,3],[103,4,107,4],[98,3,102,3],[98,4,102,4],[103,5,107,5],[65,4,69,4],[65,5,69,5],[71,0,71,3],[93,0,97,0],[93,1,97,1],[103,0,107,0],[78,0,82,0],[78,3,82,3],[78,4,82,4],[73,1,77,1],[21,0,21,8],[22,0,22,8],[23,0,23,8],[26,0,26,8],[33,0,33,3],[55,1,59,1],[55,2,59,2],[55,3,59,3],[55,4,59,4],[55,5,59,5],[32,4,32,5],[30,2,30,5],[30,6,31,8],[31,2,31,5],[35,0,39,0],[30,1,32,1],[32,7,32,8],[35,1,39,1],[35,2,39,2],[35,3,39,3],[35,4,39,4],[35,5,39,5],[40,1,44,1],[40,2,44,2],[0,0,0,3],[1,0,1,3],[2,0,2,8],[3,0,3,8],[4,0,4,8],[10,0,10,8],[50,1,54,1],[50,2,54,2],[50,3,54,3],[50,4,54,4],[50,5,54,5],[45,1,49,1],[5,0,5,8],[6,0,6,8],[12,0,12,8],[13,0,13,4],[14,0,14,4],[15,0,15,8],[17,0,17,8],[18,0,18,8],[7,0,7,8],[8,0,8,8],[9,0,9,8],[11,0,11,8],[83,6,87,8],[88,6,92,8],[93,6,97,8],[98,6,102,8],[103,6,107,8],[111,6,115,8],[116,6,120,8],[121,6,125,8],[126,6,130,8],[35,6,39,8],[40,6,44,8],[45,6,49,8],[50,6,54,8],[55,6,59,8],[60,6,64,8],[65,6,69,8],[73,6,77,8],[78,6,82,8],[131,6,135,8],[136,6,140,8],[141,6,145,8],[146,6,150,8],[151,6,155,8],[162,6,166,8],[167,6,171,8],[172,6,176,8],[177,6,181,8],[45,4,49,4],[45,5,49,5],[157,2,158,5],[157,1,158,1],[162,1,176,1],[162,2,176,2],[162,3,176,3],[177,1,181,1],[177,2,181,2],[78,1,82,1],[78,2,82,2],[65,1,69,1],[65,2,69,2],[65,3,69,3],[45,2,49,2],[60,1,64,1],[78,5,82,5],[60,2,64,2],[60,3,64,3],[60,4,64,4],[60,5,64,5],[73,2,77,2],[73,3,77,3],[73,4,77,4],[182,6,186,8],[187,0,191,0],[187,1,191,1],[187,2,191,2],[187,3,191,3],[187,4,191,4],[187,5,191,5],[187,6,191,8],[235,6,239,8],[192,6,196,8],[197,6,201,8],[192,2,196,2],[192,1,196,1],[197,1,201,1],[197,2,201,2],[205,6,209,8],[210,6,214,8],[215,6,219,8],[220,6,224,8],[225,6,229,8],[230,6,234,8],[197,0,201,0],[197,3,201,3],[197,4,201,4],[240,1,244,1],[240,2,244,2],[240,3,244,3],[240,4,244,4],[240,5,244,5],[240,6,244,8],[246,0,246,3],[235,0,239,0],[235,1,239,1],[235,2,239,2],[235,3,239,3],[235,4,239,4],[235,5,239,5],[248,6,252,8],[253,6,257,8],[258,6,262,8],[263,1,267,1],[263,2,267,2],[263,6,267,8],[268,0,272,0],[268,1,272,1],[268,2,272,2],[268,3,272,3],[268,4,272,4],[268,5,272,5],[268,6,272,8],[253,4,257,4],[253,5,257,5],[248,4,252,4],[248,5,252,5],[248,0,262,0],[248,1,262,1],[248,2,262,2],[248,3,262,3],[263,0,267,0],[263,3,267,3],[263,4,267,4],[283,0,287,0],[283,1,287,1],[283,2,287,2],[283,3,287,3],[283,4,287,4],[283,5,287,5],[283,6,287,8],[273,0,277,0],[273,1,277,1],[273,2,277,2],[273,3,277,3],[273,4,277,4],[273,5,277,5],[273,6,277,8],[278,0,282,0],[278,1,282,1],[278,2,282,2],[278,3,282,3],[278,4,282,4],[278,5,282,5],[278,6,282,8]]}
["5. Opis projekta",null,null,null,null,null,null,null,null,null,null,null,null,null,0,null,"področje",{"$f":"'Osnovne informacije'!B29","v":1}]
[null,null,null,null,null,null,null,null,null,null,null,null,null,null,1,null,"podpodročje",{"$f":"'Osnovne informacije'!B32","v":3}]
["Utemeljitev projekta",null,null,null,null,null,null,null,null,null,null,null,null,null,2]
["Na celovit način analizirajte problematiko, ki jo naslavlja projekt, kako bo projekt prispeval k njenemu reševanju in skladnost z nacionalnimi in mednarodnimi dokumenti z obravnavanega področja.",null,null,null,null,null,null,null,null,null,null,null,null,null,3,null,"trenutno aktivno področje",1]
[null,null,null,null,null,null,null,null,null,null,null,null,null,null,4,null,"trenutno aktivno podpodročje",0]
["Celovita analiza in prikaz problematike",null,null,null,null,null,null,null,null,null,null,null,null,null,5]
[null,null,null,null,null,null,null,null,null,null,"Največ 3000 znakov"]
[]
["Prispevek projekta k reševanju problematike"]
[null,null,null,null,null,null,null,null,null,null,"Največ 3000 znakov"]
[]
["Skladnost z nacionalnimi in mednarodnimi dokumenti z obravnavanega področja"]
[null,null,null,null,null,null,null,null,null,null,"Največ 1000 znakov"]
[]
["Cilji projekta"]
[{"$f":"'Osnovne informacije'!B33","v":"Izboljšanje storitev na področju duševnega zdravja"},null,null,null,null,null,null,null,null,null,"Avtomastko polje"]
[]
["V kolikor obstajajo, navedite tudi specifične cilje."]
[null,null,null,null,null,null,null,null,null,null,"Največ 500 znakov, neobvezno polje"]
[]
["Ciljne skupine"]
["Opišite ciljne skupine, njihove potrebe, s posebnim ozirom na tiste, ki jih naslavlja projekt, in pričakovano število vključenih."]
[null,null,null,null,null,null,null,null,null,null,"Največ 1500 znakov"]
[]
["Logična povezanost vsebine projekta ter prispevek projekta k uresničevanju učinkov in rezultatov programa"]
[]
["Logična povezanost vsebine projekta oz. vsebinska rdeča nit projekta sledi »rdeči liniji« izbranega področja razpisa. Najprej označite, h katerim učinkom bo prispeval projekt, označite eno ali več statističnih regij (NUTS 3), v katerih bodo vidni učinki projekta. Navedite tudi ciljne vrednosti kazalnika učinka. Dodate lahko do pet novih učinkov. Za izbran/e učinek/e projekta opišite vsaj en ključen rezultat projekta, navedite kazalnike in ciljne vrednosti kazalnikov rezultata. Za vsak učinek navedite do pet ključnih rezultatov projekta."]
[]
[]
[]
["CILJ PROJEKTA","Označiti","UČINEK PROJEKTA ",null,null,null,"KLJUČNI REZULTATI PROJEKTA "]
["(= učinek programa)",null,"(= rezultat programa)"]
[null,null,"Opis","Lokacija učinka ","Kazalnik učinka (opis in ciljna vrednost)",null,"Opis","Kazalnik rezultata (opis in ciljna vrednost)"]
["Področje Pobude za javno zdravje",null,null,null,null,0,"Izberite število dodatnih učinkov",null,null,null,"Dodatni učinek pomeni poleg v tabeli že navedenih učinkov, ki jih določa program, še dodatni učinki vašega projekta, ki jih predvidite sami"]
["POD-PODROČJE RAZPISA Zmanjševanje razlik v zdravju med skupinami uporabnikov"]
["Manjše razlike med skupinami uporabnikov",null,"Vzpostavitev in izvajanje novih programov in storitev  za različne skupine uporabnikov.",null,"Število dejavnosti v smeri povečane dostopnosti za namen zmanjšanja neenakosti v zdravju (ciljna vrednost kazalnika na ravni programa je 10)",null,null,null,null,null,"Največ 750 znakov za Ključne rezultate projekta"]
[]
[]
[]
[]
[null,null,"Večja usposobljenost strokovnjakov na področju enakosti zdravja in dela z ranljivimi skupinami",null,"Število usposobljenih strokovnjakov (ciljna vrednost kazalnika na ravni programa je 500)"]
[]
[]
[]
[]
[]
[]
[]
[]
[]
[]
[]
[]
[]
[]
[]
[]
[]
[]
[]
[]
[]
[]
[]
[]
[]
[]
[]
[]
[]
[]
["Področje Pobude za javno zdravje",null,null,null,null,0,"Izberite število dodatnih učinkov",null,null,null,"Dodatni učinek pomeni poleg v tabeli že navedenih učinkov, ki jih določa program, še dodatni učinki vašega projekta, ki jih predvidite sami"]
["POD-PODROČJE RAZPISA Preprečevanje bolezni, povezanih z življenjskim slogom"]
["Zmanjšanje ali preprečitev bolezni povezanih z življenjskim slogom",null,"Vzpostavitev in izvajanje novih celovitih programov in storitev za kronične bolezni, povezane z življenjskim slogom, za različne skupine uporabnikov",null,"Število dejavnosti, namenjenih zmanjšanju ali preprečevanju bolezni, povezanih z življenjskim slogom (ciljna vrednost kazalnika na ravni programa je 15)",null,null,null,null,null,"Največ 750 znakov za Ključne rezultate projekta"]
[]
[]
[]
[]
["Zmanjšanje ali preprečitev bolezni povezanih z življenjskim slogom",null,"Večja usposobljenost strokovnjakov za delo z ranljivimi skupinami na področju preprečevanja kroničnih bolezni, povezanih z življenjskim slogom.",null,"Število usposobljenih strokovnjakov (ciljna vrednost kazalnika na ravni programa je 300)"]
[]
[]
[]
[]
["Zmanjšanje ali preprečitev bolezni povezanih z življenjskim slogom"]
[]
[]
[]
[]
["Zmanjšanje ali preprečitev bolezni povezanih z življenjskim slogom"]
[]
[]
[]
[]
["Zmanjšanje ali preprečitev bolezni povezanih z življenjskim slogom"]
[]
[]
[]
[]
["Zmanjšanje ali preprečitev bolezni povezanih z življenjskim slogom"]
[]
[]
[]
[]
["Zmanjšanje ali preprečitev bolezni povezanih z življenjskim slogom"]
[]
[]
[]
[]
[]
["Področje Pobude za javno zdravje",null,null,null,null,5,"Izberite število dodatnih učinkov",null,null,null,"Dodatni učinek pomeni poleg v tabeli že navedenih učinkov, ki jih določa program, še dodatni učinki vašega projekta, ki jih predvidite sami"]
["POD-PODROČJE RAZPISA Izboljšanje storitev na področju duševnega zdravja"]
["Izboljšane storitve na področju duševnega zdravja",null,"Izboljšane lokalne zmogljivosti na področju duševnega zdravja.",null,"Število vzpostavljenih novih lokalnih struktur za duševno zdravje (ciljna vrednost kazalnika na ravni programa je 3)",null,null,null,null,null,"Največ 750 znakov za Ključne rezultate projekta"]
[]
[]
[]
[]
[null,null,"Večja usposobljenost na področju duševnega zdravja strokovnjakov v primarnem zdravstvenem varstvu in ostalih strokovnjakov",null,"Število usposobljenih delavcev (ciljna vrednost kazalnika na ravni programa je 100)"]
[]
[]
[]
[]
["Izboljšane storitve na področju duševnega zdravja"]
[]
[]
[]
[]
["Izboljšane storitve na področju duševnega zdravja"]
[]
[]
[]
[]
["Izboljšane storitve na področju duševnega zdravja"]
[]
[]
[]
[]
["Izboljšane storitve na področju duševnega zdravja"]
[]
[]
[]
[]
["Izboljšane storitve na področju duševnega zdravja"]
[]
[]
[]
[]
["Izboljšane storitve na področju duševnega zdravja"]
[]
[]
[]
[]
["Izboljšane storitve na področju duševnega zdravja"]
[]
[]
[]
[]
[]
["SPLOŠEN CILJ PROJEKTA ","Označiti","UČINEK PROJEKTA (= rezultat programa)",null,null,null,"KLJUČNI REZULTAT PROJEKTA \n(opis rezultata, navedba kazalnika in ciljne vrednosti kazalnika)"]
[]
["(= učinek programa)",null,"Opis","Lokacija učinka ","Kazalnik učinka (opis in ciljna vrednost)"]
["Področje Enakost spolov",null,null,null,null,0,"Izberite število dodatnih učinkov",null,null,null,"Dodatni učinek pomeni poleg v tabeli že navedenih učinkov, ki jih določa program, še dodatni učinki vašega projekta, ki jih predvidite sami"]
["POD-PODROČJE RAZPISA Odločanje na gospodarskem področju"]
["Večja ozaveščenost o enakosti spolov in spodbuda raziskavam na tem področju",null,"Povečanje razumevanja enakih/neenakih razmerih moči med ženskami in moškimi za namen identifikacije ustreznih odgovorov na neravnovesja, ki vztrajajo v spolno-pogojenih strukturah moči v družbi",null,"Odstotek dosežene ciljne skupine (ciljna vrednost kazalnika je 50%)",null,null,null,null,null,"Največ 750 znakov za Ključne rezultate projekta"]
[]
[]
[]
[]
[null,null,null,null,"Št. izvedenih politik (akcijskih načrtov, ukrepov) (ciljna vrednost kazalnika je 2)"]
[]
[]
[]
[]
[null,null,null,null,"Št. identificiranih in ovrednotenih dobrih praks (ciljna vrednost kazalnika je 2)"]
[]
[]
[]
[]
["Večja ozaveščenost o enakosti spolov in spodbuda raziskavam na tem področju"]
[]
[]
[]
[]
["Večja ozaveščenost o enakosti spolov in spodbuda raziskavam na tem področju"]
[]
[]
[]
[]
["Večja ozaveščenost o enakosti spolov in spodbuda raziskavam na tem področju"]
[]
[]
[]
[]
["Večja ozaveščenost o enakosti spolov in spodbuda raziskavam na tem področju"]
[]
[]
[]
[]
["Večja ozaveščenost o enakosti spolov in spodbuda raziskavam na tem področju"]
[]
[]
[]
[]
[]
["Področje Enakost spolov",null,null,null,null,0,"Izberite število dodatnih učinkov",null,null,null,"Dodatni učinek pomeni poleg v tabeli že navedenih učinkov, ki jih določa program, še dodatni učinki vašega projekta, ki jih predvidite sami"]
["POD-PODROČJE RAZPISA Odločanje na političnem področju"]
["Večja ozaveščenost o enakosti spolov in spodbuda raziskavam na tem področju",null,"Povečanje razumevanja enakih/neenakih razmerih moči med ženskami in moškimi za namen identifikacije ustreznih odgovorov na neravnovesja, ki vztrajajo v spolno-pogojenih strukturah moči v družbi",null,"Odstotek dosežene ciljne skupine (ciljna vrednost kazalnika je 50%)",null,null,null,null,null,"Največ 750 znakov za Ključne rezultate projekta"]
[]
[]
[]
[]
[null,null,null,null,"Št. izvedenih politik (akcijskih načrtov, ukrepov) (ciljna vrednost kazalnika je 2)"]
[]
[]
[]
[]
[null,null,null,null,"Št. identificiranih in ovrednotenih dobrih praks (ciljna vrednost kazalnika je 2)"]
[]
[]
[]
[]
["Večja ozaveščenost o enakosti spolov in spodbuda raziskavam na tem področju"]
[]
[]
[]
[]
["Večja ozaveščenost o enakosti spolov in spodbuda raziskavam na tem področju"]
[]
[]
[]
[]
["Večja ozaveščenost o enakosti spolov in spodbuda raziskavam na tem področju"]
[]
[]
[]
[]
["Večja ozaveščenost o enakosti spolov in spodbuda raziskavam na tem področju"]
[]
[]
[]
[]
["Večja ozaveščenost o enakosti spolov in spodbuda raziskavam na tem področju"]
[]
[]
[]
[]
[]
["Področje Enakost spolov",null,null,null,null,0,"Izberite število dodatnih učinkov",null,null,null,"Dodatni učinek pomeni poleg v tabeli že navedenih učinkov, ki jih določa program, še dodatni učinki vašega projekta, ki jih predvidite sami"]
["POD-PODROČJE RAZPISA Usklajevanje poklicnega in družinskega življenja"]
["Večja ozaveščenost o enakosti spolov in spodbuda raziskavam na tem področju",null,"Povečanje razumevanja enakih/neenakih razmerih moči med ženskami in moškimi za namen identifikacije ustreznih odgovorov na neravnovesja, ki vztrajajo v spolno-pogojenih strukturah moči v družbi",null,"Odstotek dosežene ciljne skupine (ciljna vrednost kazalnika je 50%)",null,null,null,null,null,"Največ 750 znakov za Ključne rezultate projekta"]
[]
[]
[]
[]
[null,null,null,null,"Št. izvedenih politik (akcijskih načrtov, ukrepov) (ciljna vrednost kazalnika je 2)"]
[]
[]
[]
[]
[null,null,null,null,"Št. identificiranih in ovrednotenih dobrih praks (ciljna vrednost kazalnika je 2)"]
[]
[]
[]
[]
["Večja ozaveščenost o enakosti spolov in spodbuda raziskavam na tem področju"]
[]
[]
[]
[]
["Večja ozaveščenost o enakosti spolov in spodbuda raziskavam na tem področju"]
[]
[]
[]
[]
["Večja ozaveščenost o enakosti spolov in spodbuda raziskavam na tem področju"]
[]
[]
[]
[]
["Večja ozaveščenost o enakosti spolov in spodbuda raziskavam na tem področju"]
[]
[]
[]
[]
["Večja ozaveščenost o enakosti spolov in spodbuda raziskavam na tem področju"]

{"sheet":"Delovni načrt projekta","index":9,"n_rows":116,"n_cols":15,"rows_kept":116,"cut":false,"hidden":false,"merged":[[85,7,86,7],[85,1,86,1],[85,2,86,2],[85,3,85,4],[85,5,86,5],[85,6,86,6],[114,0,114,7],[115,0,115,7],[18,0,18,1],[21,6,22,6],[37,3,37,4],[37,5,38,5],[37,6,38,6],[35,0,36,0],[37,0,38,0],[37,1,38,1],[53,3,53,4],[53,5,54,5],[37,7,38,7],[20,2,20,7],[21,7,22,7],[35,2,35,7],[2,0,2,7],[100,0,100,7],[106,0,106,7],[107,0,107,7],[6,0,7,0],[6,1,7,1],[6,3,6,4],[6,5,7,5],[6,6,7,6],[21,0,22,0],[21,1,22,1],[21,3,21,4],[21,5,22,5],[6,7,7,7],[84,2,84,7],[85,0,86,0],[113,0,113,4],[110,0,110,7],[111,0,111,7],[53,0,54,0],[53,1,54,1],[53,2,54,2],[53,6,54,6],[53,7,54,7],[67,0,68,0],[67,2,67,7],[68,2,68,7],[69,0,70,0],[69,1,70,1],[69,2,70,2],[69,3,69,4],[69,5,70,5],[3,2,3,4],[4,9,5,13],[103,0,103,4],[105,0,105,4],[109,0,109,4],[36,2,36,7],[37,2,38,2],[51,0,52,0],[51,2,51,7],[52,2,52,7],[50,2,50,4],[69,6,70,6],[69,7,70,7],[101,0,101,7],[83,0,84,0],[83,2,83,7],[66,2,66,4],[82,2,82,4],[4,2,4,4],[34,2,34,4],[19,2,19,5]]}
["5. Delovni načrt projekta",null,null,null,null,null,null,null,null,null,null,null,null,null,0]
[null,null,null,null,null,null,null,null,null,null,null,null,null,null,1]
["Navedite in opišite delovne sklope in dejavnosti v okviru posameznih delovnih sklopov,. Za vsako posamezno dejavnost navedite vse načrtovane dosežene rezultate in njihove kazalnike s ciljnimi vrednostmi. Navedite, kdo bo sodeloval pri posamezni dejavnosti (prijavitelj, Partner1, Partner2, itd.). Navedite stroške posamezne dejavnosti in tudi državo izvajanja dejavnosti. Za vse projekte sta obvezna vsaj dva delovna sklopa: DS1 - Upravljanje in koordinacija projekta ter DS2 - Informiranje in obveščanje. Projekt lahko v delovnem načrtu predvidi do  največ šest delovnih sklopov.",null,null,null,null,null,null,null,null,null,null,null,null,null,2]
[null,null,"Število dodatnih delovnih sklopov",null,null,0,null,null,null,"Izberite število dodatnih delovnih sklopov (poleg obveznih dveh)",null,null,null,null,3]
[null,null,"Število dodatnih dejavnosti za delovni sklop Upravljanje in koordinacija",null,null,0,null,null,null,"Izberite število dodatnih polj za dejavnosti, ki jih potrebujete v delovnem sklopu Upravljanje in koordinacija",null,null,null,null,4]
["DS 1 ","Naziv DS","Upravljanje in koordinacija",null,null,null,null,null,null,null,null,null,null,null,5]
[null,"Ime dejavnosti","Opis dejavnosti","Vsi rezultati projekta (outputs)",null,"Prijavitelj in/ali partner ","Predvideni stroški","Država izvajanja dejavnosti*",null,null,null,null,null,null,6]
[null,null,null,"Opis","Kazalnik in ciljna vrednost",null,null,null,null,null,null,null,null,null,7]
["DEJ 1.1 ",null,null,null,null,null,null,null,null,"Največ 200 znakov",null,null,null,null,8]
["DEJ 1.2 ",null,null,null,null,null,null,null,null,"Največ 200 znakov",null,null,null,null,9]
["DEJ 1.3",null,null,null,null,null,null,null,null,"Največ 200 znakov",null,null,null,null,10]
["DEJ 1.4",null,null,null,null,null,null,null,null,"Največ 200 znakov"]
["DEJ 1.5",null,null,null,null,null,null,null,null,"Največ 200 znakov"]
["DEJ 1.6",null,null,null,null,null,null,null,null,"Največ 200 znakov"]
["DEJ 1.7",null,null,null,null,null,null,null,null,"Največ 200 znakov"]
["DEJ 1.8",null,null,null,null,null,null,null,null,"Največ 200 znakov"]
["DEJ 1.9",null,null,null,null,null,null,null,null,"Največ 200 znakov"]
["DEJ 1.10",null,null,null,null,null,null,null,null,"Največ 200 znakov"]
[]
[null,null,"Število dodatnih dejavnosti za delovni sklop Informiranje in obveščanje",null,null,null,0]
["DS 2","Naziv DS","Informiranje in obveščanje"]
[null,"Ime dejavnosti","Opis dejavnosti","Vsi rezultati projekta (outputs)",null,"Prijavitelj in/ali partner","Predvideni stroški","Država izvajanja dejavnosti*"]
[null,null,null,"Opis","Kazalnik in ciljna vrednost"]
["DEJ 2.1"]
["DEJ 2.2"]
["DEJ 2.3"]
["DEJ 2.4"]
["DEJ 2.5"]
["DEJ 2.6"]
["DEJ 2.7"]
["DEJ 2.8"]
["DEJ 2.9"]
["DEJ 2.10"]
[]
[null,null,"Število dodatnih dejavnosti za delovni sklop 3",null,null,0]
["DS 3","Naziv DS",null,null,null,null,null,null,null,"Največ 100 znakov"]
[null,"Opis DS",null,null,null,null,null,null,null,"Največ 1000 znakov"]
[null,"Ime dejavnosti","Opis dejavnosti","Vsi rezultati projekta (outputs)",null,"Prijavitelj in/ali partner","Predvideni stroški","Država izvajanja dejavnosti*"]
[null,null,null,"Opis","Kazalnik in ciljna vrednost"]
["DEJ 3.1"]
["DEJ 3.2"]
["DEJ 3.3"]
["DEJ 3.4"]
["DEJ 3.5"]
["DEJ 3.6"]
["DEJ 3.7"]
["DEJ 3.8"]
["DEJ 3.9"]
["DEJ 3.10"]
[]
[null,null,"Število dodatnih dejavnosti za delovni sklop 4",null,null,0]
["DS 4","Naziv DS",null,null,null,null,null,null,null,"Največ 100 znakov"]
[null,"Opis DS",null,null,null,null,null,null,null,"Največ 1000 znakov"]
[null,"Ime dejavnosti","Opis dejavnosti","Vsi rezultati projekta (outputs)",null,"Prijavitelj in/ali partner","Predvideni stroški","Država izvajanja dejavnosti*"]
[null,null,null,"Opis","Kazalnik in ciljna vrednost"]
["DEJ 4.1"]
["DEJ 4.2"]
["DEJ 4.3"]
["DEJ 4.4"]
["DEJ 4.5"]
["DEJ 4.6"]
["DEJ 4.7"]
["DEJ 4.8"]
["DEJ 4.9"]
["DEJ 4.10"]
[]
[null,null,"Število dodatnih dejavnosti za delovni sklop 5",null,null,0]
["DS 5","Naziv DS",null,null,null,null,null,null,null,"Največ 100 znakov"]
[null,"Opis DS",null,null,null,null,null,null,null,"Največ 1000 znakov"]
[null,"Ime dejavnosti","Opis dejavnosti","Vsi rezultati projekta (outputs)",null,"Prijavitelj in/ali partner","Predvideni stroški","Država izvajanja dejavnosti*"]
[null,null,null,"Opis","Kazalnik in ciljna vrednost"]
["DEJ 5.1"]
["DEJ 5.2"]
["DEJ 5.3"]
["DEJ 5.4"]
["DEJ 5.5"]
["DEJ 5.6"]
["DEJ 5.7"]
["DEJ 5.8"]
["DEJ 5.9"]
["DEJ 5.10"]
[]
[null,null,"Število dodatnih dejavnosti za delovni sklop 6",null,null,0]
["DS 6","Naziv DS",null,null,null,null,null,null,null,"Največ 100 znakov"]
[null,"Opis DS",null,null,null,null,null,null,null,"Največ 1000 znakov"]
[null,"Ime dejavnosti","Opis dejavnosti","Vsi rezultati projekta (outputs)",null,"Prijavitelj in/ali partner","Predvideni stroški","Država izvajanja dejavnosti*"]
[null,null,null,"Opis","Kazalnik in ciljna vrednost"]
["DEJ 6.1"]
["DEJ 6.2"]
["DEJ 6.3"]
["DEJ 6.4"]
["DEJ 6.5"]
["DEJ 6.6"]
["DEJ 6.7"]
["DEJ 6.8"]
["DEJ 6.9"]
["DEJ 6.10"]
[]
[]
[]
["*Upravičeno območje izvajanja dejavnosti je območje Republike Slovenije in držav donatoric. V kolikor ocenjujete, da je dejavnost nujno potrebna za izvajanje projekta in se je ne more izvesti znotra upravičenega območja, podajte ustrezno utemeljitev."]
[null,null,null,null,null,null,null,null,null,"Največ 750 znakov"]
[]
["Inovativnost in trajnost projektnih rezultatov"]
[]
["Nove rešitve"]
["Opišite kako predlagani projekt prinaša nove rešitve, ki presegajo obstoječo prakso na izbranem področju v Sloveniji."]
[null,null,null,null,null,null,null,null,null,"Največ 2500 znakov"]
[]
["Finančna in institucionalna trajnost"]
["Pojasnite, kako bo zagotovljena trajnost projektnih rezultatov v institucionalnem in finančnem smislu. Načrtujete nadaljevanje izvajanja katere od projektnih dejavnosti  po zaključku so-financiranja? "]
[null,null,null,null,null,null,null,null,null,"Največ 2500 znakov"]
[]
["Dolgoročen vpliv na ciljno skupino"]
["Opišite dolgoročne vplive projekta na ciljno skupino. Kako bo različnim ciljnim skupinam in drugim potencialnim deležnikov omogočena uporaba rezultatov projekta?"]
[null,null,null,null,null,null,null,null,null,"Največ 2500 znakov"]

{"sheet":"data_del_nacrt","index":10,"n_rows":9,"n_cols":6,"rows_kept":9,"cut":false,"hidden":true,"merged":[]}
[]
[null,"delni",null,null,"celotno"]
["ds","dej 2","dej 10"]
[1,9,18,"F5",null,"G19"]
[2,25,33,"G20"]
[3,41,49,"F35",35,50]
[4,57,65,"F51",51,66]
[5,73,81,"F67",67,82]
[6,89,97,"F83",83,98]

{"sheet":"Oprema","index":11,"n_rows":158,"n_cols":14,"rows_kept":158,"cut":false,"hidden":false,"merged":[[0,0,0,2],[4,0,4,4],[66,0,66,4],[148,0,148,4],[65,0,65,4],[146,0,146,2],[57,0,62,0],[57,1,57,2],[58,1,58,2],[59,1,59,2],[60,1,60,2],[61,1,61,2],[62,1,62,2],[47,0,51,0],[47,1,47,2],[47,3,47,4],[48,1,48,2],[125,0,131,0],[125,1,125,2],[125,3,125,4],[126,1,126,2],[126,3,126,4],[127,1,127,2],[127,3,127,4],[128,1,128,2],[57,3,57,4],[58,3,58,4],[59,3,59,4],[60,3,60,4],[61,3,61,4],[62,3,62,4],[141,1,141,2],[142,1,142,2],[128,3,128,4],[129,1,129,2],[129,3,129,4],[130,1,130,2],[130,3,130,4],[131,1,131,2],[131,3,131,4],[145,1,145,2],[141,3,141,4],[142,3,142,4],[145,3,145,4],[143,1,143,2],[143,3,143,4],[144,1,144,2],[144,3,144,4],[139,1,139,2],[139,3,139,4],[140,1,140,2],[50,1,50,2],[50,3,50,4],[51,1,51,2],[51,3,51,4],[32,0,36,0],[32,1,32,2],[32,3,32,4],[33,1,33,2],[33,3,33,4],[34,1,34,2],[34,3,34,4],[35,1,35,2],[35,3,35,4],[36,1,36,2],[36,3,36,4],[37,0,41,0],[37,1,37,2],[37,3,37,4],[48,3,48,4],[49,1,49,2],[49,3,49,4],[38,3,38,4],[38,1,38,2],[39,1,39,2],[40,3,40,4],[41,1,41,2],[41,3,41,4],[7,0,11,0],[7,1,7,2],[7,3,7,4],[8,1,8,2],[8,3,8,4],[9,1,9,2],[9,3,9,4],[10,1,10,2],[10,3,10,4],[11,1,11,2],[11,3,11,4],[12,0,16,0],[12,1,12,2],[12,3,12,4],[13,1,13,2],[13,3,13,4],[14,1,14,2],[14,3,14,4],[15,1,15,2],[15,3,15,4],[16,1,16,2],[16,3,16,4],[17,0,21,0],[17,1,17,2],[17,3,17,4],[18,1,18,2],[18,3,18,4],[19,1,19,2],[19,3,19,4],[20,1,20,2],[20,3,20,4],[21,1,21,2],[21,3,21,4],[22,0,26,0],[22,1,22,2],[22,3,22,4],[23,1,23,2],[23,3,23,4],[24,1,24,2],[24,3,24,4],[25,1,25,2],[25,3,25,4],[26,1,26,2],[26,3,26,4],[27,0,31,0],[27,1,27,2],[27,3,27,4],[28,1,28,2],[28,3,28,4],[42,0,46,0],[42,1,42,2],[42,3,42,4],[43,1,43,2],[43,3,43,4],[44,1,44,2],[44,3,44,4],[45,1,45,2],[45,3,45,4],[46,1,46,2],[46,3,46,4],[29,1,29,2],[29,3,29,4],[30,1,30,2],[30,3,30,4],[31,1,31,2],[31,3,31,4],[39,3,39,4],[40,1,40,2],[52,0,56,0],[52,1,52,2],[52,3,52,4],[53,1,53,2],[53,3,53,4],[54,1,54,2],[54,3,54,4],[55,1,55,2],[55,3,55,4],[56,1,56,2],[56,3,56,4],[97,0,103,0],[97,1,97,2],[97,3,97,4],[98,1,98,2],[98,3,98,4],[99,1,99,2],[99,3,99,4],[100,1,100,2],[100,3,100,4],[101,1,101,2],[101,3,101,4],[102,1,102,2],[102,3,102,4],[103,1,103,2],[103,3,103,4],[104,0,110,0],[104,1,104,2],[104,3,104,4],[105,1,105,2],[105,3,105,4],[106,1,106,2],[106,3,106,4],[107,1,107,2],[107,3,107,4],[108,1,108,2],[108,3,108,4],[109,1,109,2],[109,3,109,4],[110,1,110,2],[110,3,110,4],[69,0,75,0],[69,1,69,2],[69,3,69,4],[70,1,70,2],[70,3,70,4],[71,1,71,2],[71,3,71,4],[72,1,72,2],[72,3,72,4],[73,1,73,2],[73,3,73,4],[74,1,74,2],[74,3,74,4],[75,1,75,2],[75,3,75,4],[76,0,82,0],[76,1,76,2],[76,3,76,4],[77,1,77,2],[77,3,77,4],[78,1,78,2],[78,3,78,4],[79,1,79,2],[79,3,79,4],[80,1,80,2],[80,3,80,4],[81,1,81,2],[81,3,81,4],[82,1,82,2],[82,3,82,4],[83,0,89,0],[83,1,83,2],[83,3,83,4],[84,1,84,2],[84,3,84,4],[85,1,85,2],[85,3,85,4],[86,1,86,2],[86,3,86,4],[87,1,87,2],[87,3,87,4],[88,1,88,2],[88,3,88,4],[89,1,89,2],[89,3,89,4],[90,0,96,0],[90,1,90,2],[90,3,90,4],[91,1,91,2],[91,3,91,4],[92,1,92,2],[92,3,92,4],[93,1,93,2],[93,3,93,4],[94,1,94,2],[94,3,94,4],[95,1,95,2],[95,3,95,4],[96,1,96,2],[96,3,96,4],[111,0,117,0],[111,1,111,2],[111,3,111,4],[112,1,112,2],[112,3,112,4],[113,1,113,2],[113,3,113,4],[114,1,114,2],[114,3,114,4],[115,1,115,2],[115,3,115,4],[116,1,116,2],[116,3,116,4],[117,1,117,2],[117,3,117,4],[118,0,124,0],[118,1,118,2],[118,3,118,4],[119,1,119,2],[119,3,119,4],[120,1,120,2],[120,3,120,4],[121,1,121,2],[121,3,121,4],[122,1,122,2],[122,3,122,4],[123,1,123,2],[123,3,123,4],[124,1,124,2],[124,3,124,4],[150,0,150,2],[149,0,149,3],[152,0,152,4],[158,0,158,4],[154,1,154,3],[155,1,155,3],[157,1,157,3],[132,0,138,0],[132,1,132,2],[132,3,132,4],[133,1,133,2],[133,3,133,4],[134,1,134,2],[134,3,134,4],[135,1,135,2],[135,3,135,4],[136,1,136,2],[136,3,136,4],[137,1,137,2],[137,3,137,4],[138,1,138,2],[138,3,138,4],[140,3,140,4],[139,0,145,0]]}
["6. Oprema",null,null,null,null,null,null,null,null,null,null,null,null,0]
[null,null,null,null,null,null,null,null,null,null,null,null,null,1]
[null,null,null,null,null,null,null,null,null,null,null,null,null,2]
["Strošek amortizacije",null,null,null,null,null,null,null,null,null,null,null,null,3]
["V kolikor uveljavljate stroške amortizacije nove in/ali rabljene opreme, izpolnite tabelo za posamezno vrsto opreme. ",null,null,null,null,null,null,null,null,null,null,null,null,4]
[null,null,null,null,null,null,null,null,null,null,null,null,null,5]
["Oprema ",null,null,"Število dodatnih tabel za opremo",0,null,"Izberite eno od možnosti",null,null,null,null,null,null,6]
[1,"a) Vrsta in opis nove ali rabljene opreme",null,null,null,null,"Največ 500 znakov",null,null,null,null,null,null,7]
[null,"b) Ocena stroškov amortizacije",null,null,null,null,null,null,null,null,null,null,null,9]
[null,"c) Lastnik/i opreme",null,null,null,null,"Največ 500 znakov",null,null,null,null,null,null,10]
[null,"d) Utemeljitev uveljavljanja amortizacije",null,null,null,null,"Največ 1000 znakov. Navedite, kako amortizacija ustreza trajanju projekta in dejanski stopnji uporabe za namene projekta."]
[null,"e) Kratek opis tehničnih/tehnoloških značilnosti in načrtovanih količin nove ali rabljene opreme",null,null,null,null,"Največ 1000 znakov"]
[2,"a) Vrsta in opis nove ali rabljene opreme",null,null,null,null,"Največ 500 znakov"]
[null,"b) Ocena stroškov amortizacije"]
[null,"c) Lastnik/i opreme",null,null,null,null,"Največ 500 znakov"]
[null,"d) Utemeljitev uveljavljanja amortizacije",null,null,null,null,"Največ 1000 znakov. Navedite, kako amortizacija ustreza trajanju projekta in dejanski stopnji uporabe za namene projekta."]
[null,"e) Kratek opis tehničnih/tehnoloških značilnosti in načrtovanih količin nove ali rabljene opreme",null,null,null,null,"Največ 1000 znakov"]
[3,"a) Vrsta in opis nove ali rabljene opreme",null,null,null,null,"Največ 500 znakov"]
[null,"b) Ocena stroškov amortizacije"]
[null,"c) Lastnik/i opreme",null,null,null,null,"Največ 500 znakov"]
[null,"d) Utemeljitev uveljavljanja amortizacije",null,null,null,null,"Največ 1000 znakov. Navedite, kako amortizacija ustreza trajanju projekta in dejanski stopnji uporabe za namene projekta."]
[null,"e) Kratek opis tehničnih/tehnoloških značilnosti in načrtovanih količin nove ali rabljene opreme",null,null,null,null,"Največ 1000 znakov"]
[4,"a) Vrsta in opis nove ali rabljene opreme",null,null,null,null,"Največ 500 znakov"]
[null,"b) Ocena stroškov amortizacije"]
[null,"c) Lastnik/i opreme",null,null,null,null,"Največ 500 znakov"]
[null,"d) Utemeljitev uveljavljanja amortizacije",null,null,null,null,"Največ 1000 znakov. Navedite, kako amortizacija ustreza trajanju projekta in dejanski stopnji uporabe za namene projekta."]
[null,"e) Kratek opis tehničnih/tehnoloških značilnosti in načrtovanih količin nove ali rabljene opreme",null,null,null,null,"Največ 1000 znakov"]
[5,"a) Vrsta in opis nove ali rabljene opreme",null,null,null,null,"Največ 500 znakov"]
[null,"b) Ocena stroškov amortizacije"]
[null,"c) Lastnik/i opreme",null,null,null,null,"Največ 500 znakov"]
[null,"d) Utemeljitev uveljavljanja amortizacije",null,null,null,null,"Največ 1000 znakov. Navedite, kako amortizacija ustreza trajanju projekta in dejanski stopnji uporabe za namene projekta."]
[null,"e) Kratek opis tehničnih/tehnoloških značilnosti in načrtovanih količin nove ali rabljene opreme",null,null,null,null,"Največ 1000 znakov"]
[6,"a) Vrsta in opis nove ali rabljene opreme",null,null,null,null,"Največ 500 znakov"]
[null,"b) Ocena stroškov amortizacije"]
[null,"c) Lastnik/i opreme",null,null,null,null,"Največ 500 znakov"]
[null,"d) Utemeljitev uveljavljanja amortizacije",null,null,null,null,"Največ 1000 znakov. Navedite, kako amortizacija ustreza trajanju projekta in dejanski stopnji uporabe za namene projekta."]
[null,"e) Kratek opis tehničnih/tehnoloških značilnosti in načrtovanih količin nove ali rabljene opreme",null,null,null,null,"Največ 1000 znakov"]
[7,"a) Vrsta in opis nove ali rabljene opreme",null,null,null,null,"Največ 500 znakov"]
[null,"b) Ocena stroškov amortizacije"]
[null,"c) Lastnik/i opreme",null,null,null,null,"Največ 500 znakov"]
[null,"d) Utemeljitev uveljavljanja amortizacije",null,null,null,null,"Največ 1000 znakov. Navedite, kako amortizacija ustreza trajanju projekta in dejanski stopnji uporabe za namene projekta."]
[null,"e) Kratek opis tehničnih/tehnoloških značilnosti in načrtovanih količin nove ali rabljene opreme",null,null,null,null,"Največ 1000 znakov"]
[8,"a) Vrsta in opis nove ali rabljene opreme",null,null,null,null,"Največ 500 znakov"]
[null,"b) Ocena stroškov amortizacije"]
[null,"c) Lastnik/i opreme",null,null,null,null,"Največ 500 znakov"]
[null,"d) Utemeljitev uveljavljanja amortizacije",null,null,null,null,"Največ 1000 znakov. Navedite, kako amortizacija ustreza trajanju projekta in dejanski stopnji uporabe za namene projekta."]
[null,"e) Kratek opis tehničnih/tehnoloških značilnosti in načrtovanih količin nove ali rabljene opreme",null,null,null,null,"Največ 1000 znakov"]
[9,"a) Vrsta in opis nove ali rabljene opreme",null,null,null,null,"Največ 500 znakov"]
[null,"b) Ocena stroškov amortizacije"]
[null,"c) Lastnik/i opreme",null,null,null,null,"Največ 500 znakov"]
[null,"d) Utemeljitev uveljavljanja amortizacije",null,null,null,null,"Največ 1000 znakov. Navedite, kako amortizacija ustreza trajanju projekta in dejanski stopnji uporabe za namene projekta."]
[null,"e) Kratek opis tehničnih/tehnoloških značilnosti in načrtovanih količin nove ali rabljene opreme",null,null,null,null,"Največ 1000 znakov"]
[10,"a) Vrsta in opis nove ali rabljene opreme",null,null,null,null,"Največ 500 znakov"]
[null,"b) Ocena stroškov amortizacije"]
[null,"c) Lastnik/i opreme",null,null,null,null,"Največ 500 znakov"]
[null,"d) Utemeljitev uveljavljanja amortizacije",null,null,null,null,"Največ 1000 znakov. Navedite, kako amortizacija ustreza trajanju projekta in dejanski stopnji uporabe za namene projekta."]
[null,"e) Kratek opis tehničnih/tehnoloških značilnosti in načrtovanih količin nove ali rabljene opreme",null,null,null,null,"Največ 1000 znakov"]
[11,"a) Vrsta in opis nove ali rabljene opreme",null,null,null,null,"Največ 500 znakov"]
[null,"b) Ocena stroškov amortizacije"]
[null,"c) Lastnik/i opreme",null,null,null,null,"Največ 500 znakov"]
[null,"d) Utemeljitev uveljavljanja amortizacije",null,null,null,null,"Največ 1000 znakov. Navedite, kako amortizacija ustreza trajanju projekta in dejanski stopnji uporabe za namene projekta."]
[null,"e) Kratek opis tehničnih/tehnoloških značilnosti in načrtovanih količin nove ali rabljene opreme",null,null,null,null,"Največ 1000 znakov"]
[null,"f) Kratek opis tehničnih/tehnoloških značilnosti in načrtovanih količin nove ali rabljene opreme",null,"Etiam lacinia odio vel pulvinar eleifend. Nunc vulputate auctor pulvinar. Sed vestibulum condimentum condimentum. Cras vulputate non risus in euismod. Duis auctor iaculis ultricies. Ut quis volutpat ligula, quis vestibulum et tortor. Morbi a bibendum velit. Donec in dapibus diam, in convallis velit. Nullam mauris dui, facilisis nec tellus ut, rhoncus dignissim massa. Mauris quis mattis arcu. Nulla feugiat ante lorem, sed hendrerit nisl lobortis sed. Aliquam vel nisi feugiat, variu enim a, facil. Etiam lacinia odio vel pulvinar eleifend. Nunc vulputate auctor pulvinar. Sed vestibulum condimentum condimentum. Cras vulputate non risus in euismod. Duis auctor iaculis ultricies. Ut quis volutpat ligula, quis vestibulum et tortor. Morbi a bibendum velit. Donec in dapibus diam, in convallis velit. Nullam mauris dui, facilisis nec tellus ut, rhoncus dignissim massa. Mauris quis mattis arcu. Nulla feugiat ante lorem, sed hendrerit nisl lobortis sed. Aliquam vel nisi feugiat, variu enim a, facil.",null,null,"Največ 1000 znakov"]
[]
[]
["Nakup nove opreme, za katero se v okviru projekta uveljavlja povračilo celotne kupnine"]
["V kolikor načrtujete nakup nove opreme, za katero boste v okviru projekta uveljavljali povračilo celotne kupnine, izpolnite tabelo za posamezno vrsto opreme . Upravičeni stroški nakupa nove opreme lahko predstavljajo največ 30% skupnih upravičenih stroškov projekta. "]
[]
["Oprema ",null,null,"Število dodatnih tabel za opremo",0,null,"Izberite eno od možnosti"]
[1,"a) Vrsta,opis in načrtovane količine nove opreme",null,null,null,null,"Obvezno polje, največ 500 znakov"]
[null,"b) Ocena stroškov nakupa nove opreme",null,null,null,null,"Obvezno polje, vpišite znesek"]
[null,"c) Ocena stroškov vzdrževanja in zavarovanja nove opreme v času trajanja projekta",null,null,null,null,"Obvezno polje, vpišite znesek"]
[null,"d) Utemeljitev nakupa nove opreme",null,null,null,null,"Obvezno polje, največ 1000 znakov"]
[null,"e)  Način zagotavljanja izpolnjevanja posebnih pogojev  v zvezi z nakupom nove opreme po potrditvi zaključnega poročila projekta v obdobju petih let",null,null,null,null,"Največ 1000 znakov"]
[null,"f) Lastnik/i nove opreme po nakupu",null,null,null,null,"Obvezno polje, največ 500 znakov. Navedite, zakaj je oprema sestavni in nujni del za izvedbo projekta in zakaj je bistvena za doseganje ciljev projekta.,"]
[null,"g) Kratek opis tehničnih/tehnoloških značilnosti",null,null,null,null,"Obvezno polje, največ 1000 znakov"]
[2,"a) Vrsta,opis in načrtovane količine nove opreme",null,null,null,null,"Obvezno polje, največ 500 znakov"]
[null,"b) Ocena stroškov nakupa nove opreme",null,null,null,null,"Obvezno polje, vpišite znesek"]
[null,"c) Ocena stroškov vzdrževanja in zavarovanja nove opreme v času trajanja projekta",null,null,null,null,"Obvezno polje, vpišite znesek"]
[null,"d) Utemeljitev nakupa nove opreme",null,null,null,null,"Obvezno polje, največ 1000 znakov"]
[null,"e)  Način zagotavljanja izpolnjevanja posebnih pogojev  v zvezi z nakupom nove opreme po potrditvi zaključnega poročila projekta v obdobju petih let",null,null,null,null,"Največ 1000 znakov"]
[null,"f) Lastnik/i nove opreme po nakupu",null,null,null,null,"Obvezno polje, največ 500 znakov. Navedite, zakaj je oprema sestavni in nujni del za izvedbo projekta in zakaj je bistvena za doseganje ciljev projekta.,"]
[null,"g) Kratek opis tehničnih/tehnoloških značilnosti",null,null,null,null,"Obvezno polje, največ 1000 znakov"]
[3,"a) Vrsta,opis in načrtovane količine nove opreme",null,null,null,null,"Obvezno polje, največ 500 znakov"]
[null,"b) Ocena stroškov nakupa nove opreme",null,null,null,null,"Obvezno polje, vpišite znesek"]
[null,"c) Ocena stroškov vzdrževanja in zavarovanja nove opreme v času trajanja projekta",null,null,null,null,"Obvezno polje, vpišite znesek"]
[null,"d) Utemeljitev nakupa nove opreme",null,null,null,null,"Obvezno polje, največ 1000 znakov"]
[null,"e)  Način zagotavljanja izpolnjevanja posebnih pogojev  v zvezi z nakupom nove opreme po potrditvi zaključnega poročila projekta v obdobju petih let",null,null,null,null,"Največ 1000 znakov"]
[null,"f) Lastnik/i nove opreme po nakupu",null,null,null,null,"Obvezno polje, največ 500 znakov. Navedite, zakaj je oprema sestavni in nujni del za izvedbo projekta in zakaj je bistvena za doseganje ciljev projekta.,"]
[null,"g) Kratek opis tehničnih/tehnoloških značilnosti",null,null,null,null,"Obvezno polje, največ 1000 znakov"]
[4,"a) Vrsta,opis in načrtovane količine nove opreme",null,null,null,null,"Obvezno polje, največ 500 znakov"]
[null,"b) Ocena stroškov nakupa nove opreme",null,null,null,null,"Obvezno polje, vpišite znesek"]
[null,"c) Ocena stroškov vzdrževanja in zavarovanja nove opreme v času trajanja projekta",null,null,null,null,"Obvezno polje, vpišite znesek"]
[null,"d) Utemeljitev nakupa nove opreme",null,null,null,null,"Obvezno polje, največ 1000 znakov"]
[null,"e)  Način zagotavljanja izpolnjevanja posebnih pogojev  v zvezi z nakupom nove opreme po potrditvi zaključnega poročila projekta v obdobju petih let",null,null,null,null,"Največ 1000 znakov"]
[null,"f) Lastnik/i nove opreme po nakupu",null,null,null,null,"Obvezno polje, največ 500 znakov. Navedite, zakaj je oprema sestavni in nujni del za izvedbo projekta in zakaj je bistvena za doseganje ciljev projekta.,"]
[null,"g) Kratek opis tehničnih/tehnoloških značilnosti",null,null,null,null,"Obvezno polje, največ 1000 znakov"]
[5,"a) Vrsta,opis in načrtovane količine nove opreme",null,null,null,null,"Obvezno polje, največ 500 znakov"]
[null,"b) Ocena stroškov nakupa nove opreme",null,null,null,null,"Obvezno polje, vpišite znesek"]
[null,"c) Ocena stroškov vzdrževanja in zavarovanja nove opreme v času trajanja projekta",null,null,null,null,"Obvezno polje, vpišite znesek"]
[null,"d) Utemeljitev nakupa nove opreme",null,null,null,null,"Obvezno polje, največ 1000 znakov"]
[null,"e)  Način zagotavljanja izpolnjevanja posebnih pogojev  v zvezi z nakupom nove opreme po potrditvi zaključnega poročila projekta v obdobju petih let",null,null,null,null,"Največ 1000 znakov"]
[null,"f) Lastnik/i nove opreme po nakupu",null,null,null,null,"Obvezno polje, največ 500 znakov. Navedite, zakaj je oprema sestavni in nujni del za izvedbo projekta in zakaj je bistvena za doseganje ciljev projekta.,"]
[null,"g) Kratek opis tehničnih/tehnoloških značilnosti",null,null,null,null,"Obvezno polje, največ 1000 znakov"]
[6,"a) Vrsta,opis in načrtovane količine nove opreme",null,null,null,null,"Obvezno polje, največ 500 znakov"]
[null,"b) Ocena stroškov nakupa nove opreme",null,null,null,null,"Obvezno polje, vpišite znesek"]
[null,"c) Ocena stroškov vzdrževanja in zavarovanja nove opreme v času trajanja projekta",null,null,null,null,"Obvezno polje, vpišite znesek"]
[null,"d) Utemeljitev nakupa nove opreme",null,null,null,null,"Obvezno polje, največ 1000 znakov"]
[null,"e)  Način zagotavljanja izpolnjevanja posebnih pogojev  v zvezi z nakupom nove opreme po potrditvi zaključnega poročila projekta v obdobju petih let",null,null,null,null,"Največ 1000 znakov"]
[null,"f) Lastnik/i nove opreme po nakupu",null,null,null,null,"Obvezno polje, največ 500 znakov. Navedite, zakaj je oprema sestavni in nujni del za izvedbo projekta in zakaj je bistvena za doseganje ciljev projekta.,"]
[null,"g) Kratek opis tehničnih/tehnoloških značilnosti",null,null,null,null,"Obvezno polje, največ 1000 znakov"]
[7,"a) Vrsta,opis in načrtovane količine nove opreme",null,null,null,null,"Obvezno polje, največ 500 znakov"]
[null,"b) Ocena stroškov nakupa nove opreme",null,null,null,null,"Obvezno polje, vpišite znesek"]
[null,"c) Ocena stroškov vzdrževanja in zavarovanja nove opreme v času trajanja projekta",null,null,null,null,"Obvezno polje, vpišite znesek"]
[null,"d) Utemeljitev nakupa nove opreme",null,null,null,null,"Obvezno polje, največ 1000 znakov"]
[null,"e)  Način zagotavljanja izpolnjevanja posebnih pogojev  v zvezi z nakupom nove opreme po potrditvi zaključnega poročila projekta v obdobju petih let",null,null,null,null,"Največ 1000 znakov"]
[null,"f) Lastnik/i nove opreme po nakupu",null,null,null,null,"Obvezno polje, največ 500 znakov. Navedite, zakaj je oprema sestavni in nujni del za izvedbo projekta in zakaj je bistvena za doseganje ciljev projekta.,"]
[null,"g) Kratek opis tehničnih/tehnoloških značilnosti",null,null,null,null,"Obvezno polje, največ 1000 znakov"]
[8,"a) Vrsta,opis in načrtovane količine nove opreme",null,null,null,null,"Obvezno polje, največ 500 znakov"]
[null,"b) Ocena stroškov nakupa nove opreme",null,null,null,null,"Obvezno polje, vpišite znesek"]
[null,"c) Ocena stroškov vzdrževanja in zavarovanja nove opreme v času trajanja projekta",null,null,null,null,"Obvezno polje, vpišite znesek"]
[null,"d) Utemeljitev nakupa nove opreme",null,null,null,null,"Obvezno polje, največ 1000 znakov"]
[null,"e)  Način zagotavljanja izpolnjevanja posebnih pogojev  v zvezi z nakupom nove opreme po potrditvi zaključnega poročila projekta v obdobju petih let",null,null,null,null,"Največ 1000 znakov"]
[null,"f) Lastnik/i nove opreme po nakupu",null,null,null,null,"Obvezno polje, največ 500 znakov. Navedite, zakaj je oprema sestavni in nujni del za izvedbo projekta in zakaj je bistvena za doseganje ciljev projekta.,"]
[null,"g) Kratek opis tehničnih/tehnoloških značilnosti",null,null,null,null,"Obvezno polje, največ 1000 znakov"]
[9,"a) Vrsta,opis in načrtovane količine nove opreme",null,null,null,null,"Obvezno polje, največ 500 znakov"]
[null,"b) Ocena stroškov nakupa nove opreme",null,null,null,null,"Obvezno polje, vpišite znesek"]
[null,"c) Ocena stroškov vzdrževanja in zavarovanja nove opreme v času trajanja projekta",null,null,null,null,"Obvezno polje, vpišite znesek"]
[null,"d) Utemeljitev nakupa nove opreme",null,null,null,null,"Obvezno polje, največ 1000 znakov"]
[null,"e)  Način zagotavljanja izpolnjevanja posebnih pogojev  v zvezi z nakupom nove opreme po potrditvi zaključnega poročila projekta v obdobju petih let",null,null,null,null,"Največ 1000 znakov"]
[null,"f) Lastnik/i nove opreme po nakupu",null,null,null,null,"Obvezno polje, največ 500 znakov. Navedite, zakaj je oprema sestavni in nujni del za izvedbo projekta in zakaj je bistvena za doseganje ciljev projekta.,"]
[null,"g) Kratek opis tehničnih/tehnoloških značilnosti",null,null,null,null,"Obvezno polje, največ 1000 znakov"]
[10,"a) Vrsta,opis in načrtovane količine nove opreme",null,null,null,null,"Obvezno polje, največ 500 znakov"]
[null,"b) Ocena stroškov nakupa nove opreme",null,null,null,null,"Obvezno polje, vpišite znesek"]
[null,"c) Ocena stroškov vzdrževanja in zavarovanja nove opreme v času trajanja projekta",null,null,null,null,"Obvezno polje, vpišite znesek"]
[null,"d) Utemeljitev nakupa nove opreme",null,null,null,null,"Obvezno polje, največ 1000 znakov"]
[null,"e)  Način zagotavljanja izpolnjevanja posebnih pogojev  v zvezi z nakupom nove opreme po potrditvi zaključnega poročila projekta v obdobju petih let",null,null,null,null,"Največ 1000 znakov"]
[null,"f) Lastnik/i nove opreme po nakupu",null,null,null,null,"Obvezno polje, največ 500 znakov. Navedite, zakaj je oprema sestavni in nujni del za izvedbo projekta in zakaj je bistvena za doseganje ciljev projekta.,"]
[null,"g) Kratek opis tehničnih/tehnoloških značilnosti",null,null,null,null,"Obvezno polje, največ 1000 znakov"]
[11,"a) Vrsta,opis in načrtovane količine nove opreme",null,null,null,null,"Obvezno polje, največ 500 znakov"]
[null,"b) Ocena stroškov nakupa nove opreme",null,null,null,null,"Obvezno polje, vpišite znesek"]
[null,"c) Ocena stroškov vzdrževanja in zavarovanja nove opreme v času trajanja projekta",null,null,null,null,"Obvezno polje, vpišite znesek"]
[null,"d) Utemeljitev nakupa nove opreme",null,null,null,null,"Obvezno polje, največ 1000 znakov"]
[null,"e)  Način zagotavljanja izpolnjevanja posebnih pogojev  v zvezi z nakupom nove opreme po potrditvi zaključnega poročila projekta v obdobju petih let",null,null,null,null,"Največ 1000 znakov"]
[null,"f) Lastnik/i nove opreme po nakupu",null,null,null,null,"Obvezno polje, največ 500 znakov"]
[null,"g) Kratek opis tehničnih/tehnoloških značilnosti",null,null,null,null,"Obvezno polje, največ 1000 znakov"]
[]
[]
["Spodnja tabela prikazuje avtomatski izračun ocene skupnih stroškov nakupa nove opreme in delež teh stroškov v razmerju do skupnih upravičenih stroškov. Stroški nakupa nove opreme lahko predstavljajo največ 30% skupnih upravičenih stroškov projekta. "]
["V EUR",null,null,null,"Delež od skupnih upravičenih stroškov"]
["Ocena skupnih stroškov nakupa nove opreme",null,null,{"$f":"D71+D78+D85+D92+D99+D106+D113+D120+D127+D134+D141","v":0},{"$f":"D151/'Finančni načrt'!N27","v":{"$error":"#DIV/0!"}}]
[]
["Označite podatke o izdelani investicijski dokumentaciji"]
[]
[null,"Izdelan DIIP"]
[null,"Izdelan DIIP, IP"]
[null,"Izdelan DIIP, PIZ in IP"]
[null,"Drugo:"]

{"sheet":"data_oprema","index":12,"n_rows":21,"n_cols":6,"rows_kept":21,"cut":false,"hidden":true,"merged":[]}
[]
[]
[]
["opn","start","end",null,"e7"]
[2,14,19,null,null,{"$f":"(A5-1) * 6 + 13","v":19}]
[3,20,25,null,null,{"$f":"(A6-1) * 6 + 13","v":25}]
[4,26,31,null,null,31]
[5,32,37,null,null,37]
[6,38,43,null,null,43]
[7,44,49,null,null,49]
[8,50,55,null,null,55]
[9,56,61,null,null,61]
[10,62,67,null,null,67]
[11,68,73,null,null,73]
[]
[null,87,null,null,"E79"]
[]
[]
[]
[]
[null,null,156]

{"sheet":"Finančni načrt","index":13,"n_rows":84,"n_cols":15,"rows_kept":84,"cut":false,"hidden":false,"merged":[[0,0,0,2],[2,0,2,2],[3,0,3,2],[4,0,4,2],[5,0,5,9],[19,0,19,9],[74,0,74,9],[21,7,21,9],[22,7,22,9],[23,7,23,9],[24,7,24,9],[25,7,25,9],[26,7,26,9],[33,8,35,8],[50,8,52,8],[50,9,52,9],[33,7,35,7],[7,1,7,3],[8,1,8,3],[9,1,9,3],[10,1,10,3],[11,1,11,3],[7,7,7,9],[8,7,8,9],[79,1,79,3],[80,1,80,3],[80,4,80,5],[79,4,79,5],[78,4,78,5],[77,4,77,5],[76,4,76,5],[83,4,83,5],[82,4,82,5],[81,4,81,5],[81,1,81,3],[82,1,82,3],[83,1,83,3],[76,1,76,3],[77,1,77,3],[78,1,78,3],[77,8,77,9],[78,8,78,9],[79,8,79,9],[80,8,80,9],[81,8,81,9],[82,8,82,9],[83,8,83,9],[76,6,76,7],[77,6,77,7],[78,6,78,7],[79,6,79,7],[80,6,80,7],[9,7,9,9],[10,7,10,9],[11,7,11,9],[7,4,7,6],[8,4,8,6],[9,4,9,6],[10,4,10,6],[11,4,11,6],[23,1,23,3],[12,7,12,9],[13,7,13,9],[14,7,14,9],[12,1,12,3],[13,1,13,3],[14,1,14,3],[12,4,12,6],[13,4,13,6],[14,4,14,6],[18,0,18,2],[24,1,24,3],[25,1,25,3],[26,1,26,3],[21,4,21,6],[22,4,22,6],[23,4,23,6],[24,4,24,6],[25,4,25,6],[26,4,26,6],[21,1,21,3],[22,1,22,3],[83,11,87,11],[29,0,29,9],[31,11,32,11],[50,4,50,5],[51,4,52,4],[51,5,52,5],[48,0,48,10],[33,4,33,5],[34,4,35,4],[34,5,35,5],[33,6,35,6],[33,3,35,3],[50,3,52,3],[33,1,35,1],[33,2,35,2],[50,1,52,1],[50,2,52,2],[50,6,52,6],[50,7,52,7],[50,10,52,10],[81,6,81,7],[82,6,82,7],[83,6,83,7],[76,8,76,9]]}
["7. Finančni načrt"]
[]
["Viri sofinanciranja "]
[]
["Viri sofinanciranja – prijavitelj je nevladna organizacija"]
["V kolikor je prijavitelj NVO, izpolnite spodnjo tabelo virov financiranja. Upravičeni stroški projekta se lahko sofinancirajo do največ 90% iz nepovratnih sredstev, medtem ko mora NVO kot nosilec projekta preostalih 10% ali več zagotoviti kot lastno udeležbo. Pri tem lahko NVO lastno udeležbo zagotovi v celoti v denarju ali pa delno v denarju (najmanj 50% lastne udeležbe) in delno v naravi v obliki prostovoljskega dela (do največ 50% lastne udeležbe).  "]
[]
["Vir financiranja","Višina v EUR",null,null,"Delež",null,null,"Delež lastne udeležbe"]
["1. LASTNA UDELEŽBA",{"$f":"B10+B11","v":0},null,null,{"$f":"B9/$B$15","v":{"$error":"#DIV/0!"}}]
["1.1 Denarni prispevek",null,null,null,{"$f":"B10/$B$15","v":{"$error":"#DIV/0!"}},null,null,{"$f":"B10/B9","v":{"$error":"#DIV/0!"}}]
["1.2 Nematerialni prispevek",null,null,null,{"$error":"#DIV/0!"},null,null,{"$f":"B11/B9","v":{"$error":"#DIV/0!"}}]
["2. NEPOVRATNA SREDSTVA SOFINANCIRANJA ",null,null,null,{"$error":"#DIV/0!"},null,null,"Delež nepovratnih sredstev financiranja"]
["2.1 Namenska sredstva NOR",{"$f":"0.85 * B12","v":0},null,null,{"$error":"#DIV/0!"},null,null,{"$f":"B13/$B$12","v":{"$error":"#DIV/0!"}}]
["2.2 Nacionalna sredstva",{"$f":"0.15 * B12","v":0},null,null,{"$error":"#DIV/0!"},null,null,{"$f":"B14/$B$12","v":{"$error":"#DIV/0!"}}]
["3. SKUPNI UPRAVIČENI STROŠKI",null,null,null,{"$error":"#DIV/0!"}]
[]
[]
[]
["Viri sofinanciranja – ostali prijavitelji"]
["V kolikor prijavitelj ni NVO, izpolnite spodnjo tabelo. Upravičeni stroški projekta se lahko sofinancirajo do največ 95% iz nepovratnih sredstev, medtem ko mora nosilec projekta preostalih 5% ali več zagotoviti kot lastno udeležbo."]
[]
["Vir financiranja","Višina v EUR",null,null,"Delež"]
["1. LASTNA UDELEŽBA",null,null,null,{"$f":"B23/$B$27","v":{"$error":"#DIV/0!"}}]
["2. NEPOVRATNA SREDSTVA SOFINANCIRANJA ",null,null,null,{"$f":"B24/$B$27","v":{"$error":"#DIV/0!"}},null,null,"Delež nepovratnih sredstev financiranja"]
["2.1 Namenska sredstva NOR",{"$f":"0.85*$B$24","v":0},null,null,{"$error":"#DIV/0!"},null,null,{"$f":"B25/$B$24","v":{"$error":"#DIV/0!"}}]
["2.2. Nacionalna sredstva",{"$f":"0.85*$B$24","v":0},null,null,{"$error":"#DIV/0!"},null,null,{"$f":"B26/$B$24","v":{"$error":"#DIV/0!"}},null,null,null,null,null,"znesek","delež"]
["3. SKUPNI UPRAVIČENI STROŠKI",null,null,null,{"$error":"#DIV/0!"},null,null,null,null,null,null,null,"skupni",{"$f":"IF(ISNUMBER(B15),B15,B27)","v":0}]
[null,null,null,null,null,null,null,null,null,null,null,null,"lastna",{"$f":"IF(ISNUMBER(B15),B9,B23)","v":0},{"$f":"IF(ISNUMBER(B15),E9,E23)","v":{"$error":"#DIV/0!"}}]
["Predvideni skupni upravičeni stroški projekta po kategorijah stroškov in delovnih sklopih.",null,null,null,null,null,null,null,null,null,null,null,"nepovratna",{"$f":"IF(ISNUMBER(B15),B12,B24)","v":0},{"$f":"IF(ISNUMBER(B15),E15,E27)","v":{"$error":"#DIV/0!"}}]
["Izpolnite tabelo po kategorijah stroškov in delovnih sklopih. Pri stroških opreme upoštevajte stroške morebitnega nakupa, amortizacije, vzdrževanja, zavarovanja in podobno. Tabelo izpolnite v EUR."]
[]
["Metoda izračuna posrednih administrativnih stroškov",null,null,null,null,null,null,null,null,null,null,"Metoda A pomeni izračun posrednih administrativnih stroškov po ključu, metoda B pa po pavšalu. Glej 2.3.3.4. poglavje Navodil za prijavitelje - Sklop A. "]
[]
["Kategorija stroškov","Stroški osebja","Stroški zunanjih izvajalcev","Stroški opreme","Administrativni stroški",null,"In-kind","SKUPAJ ","Delež skupnih upravičenih stroškov %"]
[null,null,null,null,"Neposredni stroški","Posredni stroški"]
["Delovni sklop"]
["DS 1",null,null,null,null,null,null,{"$f":"SUM(B37:G37)","v":0},{"$f":"H37/$N$27","v":{"$error":"#DIV/0!"}}]
["DS 2 ",null,null,null,null,null,null,0,{"$f":"H38/$N$27","v":{"$error":"#DIV/0!"}}]
["DS 3",null,null,null,null,null,null,0,{"$error":"#DIV/0!"}]
["DS 4",null,null,null,null,null,null,0,{"$error":"#DIV/0!"}]
["DS 5",null,null,null,null,null,null,0,{"$error":"#DIV/0!"}]
["DS 6",null,null,null,null,null,null,0,{"$error":"#DIV/0!"}]
["SKUPNI UPRAVIČENI STROŠKI",{"$f":"SUM(B37:B42)","v":0},0,0,0,{"$f":"SUM(F37:F42)","v":0},0,0,{"$error":"#DIV/0!"}]
["Delež skupnih upravičenih stroškov %",{"$f":"B43/$N$27","v":{"$error":"#DIV/0!"}},{"$f":"C43/$N$27","v":{"$error":"#DIV/0!"}},{"$error":"#DIV/0!"},{"$error":"#DIV/0!"},{"$f":"F43/$N$27","v":{"$error":"#DIV/0!"}},{"$error":"#DIV/0!"},{"$error":"#DIV/0!"}]
[]
[]
[]
["Predvideni skupni upravičeni stroški projekta po kategorijah stroškov in partnerjih"]
["Izpolnite tabelo po kategorijah stroškov in partnerjih. Pri stroških opreme upoštevajte tako stroške njenega nakupa kot stroške vzdrževanja in/ali zavarovanja opreme. Tabelo izpolnite v EUR."]
[]
["Kategorija stroškov","Stroški osebja","Stroški zunanjih izvajalcev","Stroški opreme","Administrativni stroški",null,"In-kind","SKUPAJ ","Delež skupnih upravičenih stroškov %","Višina nepovratnih sredstev ","Višina lastne udeležbe "]
[null,null,null,null,"Neposredni stroški","Posredni stroški"]
["Upravičenci"]
["Prijavitelj",null,null,null,null,null,null,{"$f":"SUM(B54:G54)","v":0},{"$f":"H54/$N$27","v":{"$error":"#DIV/0!"}}]
["Partner 1",null,null,null,null,null,null,0,{"$f":"H55/$N$27","v":{"$error":"#DIV/0!"}}]
["Partner 2",null,null,null,null,null,null,0,{"$error":"#DIV/0!"}]
["Partner 3",null,null,null,null,null,null,0,{"$error":"#DIV/0!"}]
["Partner 4",null,null,null,null,null,null,0,{"$error":"#DIV/0!"}]
["Partner 5",null,null,null,null,null,null,0,{"$error":"#DIV/0!"}]
["Partner 6",null,null,null,null,null,null,0,{"$error":"#DIV/0!"}]
["Partner 7",null,null,null,null,null,null,0,{"$error":"#DIV/0!"}]
["Partner 8",null,null,null,null,null,null,0,{"$error":"#DIV/0!"}]
["Partner 9",null,null,null,null,null,null,0,{"$error":"#DIV/0!"}]
["Partner 10",null,null,null,null,null,null,0,{"$error":"#DIV/0!"}]
["Partner 11",null,null,null,null,null,null,0,{"$error":"#DIV/0!"}]
["Partner 12",null,null,null,null,null,null,0,{"$error":"#DIV/0!"}]
["Partner 13",null,null,null,null,null,null,0,{"$error":"#DIV/0!"}]
["Partner 14",null,null,null,null,null,null,0,{"$error":"#DIV/0!"}]
["Partner 15",null,null,null,null,null,null,0,{"$error":"#DIV/0!"}]
["Partner 16",null,null,null,null,null,null,0,{"$error":"#DIV/0!"}]
["SKUPNI UPRAVIČENI STROŠKI",{"$f":"SUM(B54:B70)","v":0},{"$f":"SUM(C54:C70)","v":0},0,0,{"$f":"SUM(F54:F70)","v":0},0,0,{"$error":"#DIV/0!"},{"$f":"SUM(J54:J70)","v":0},{"$f":"SUM(K54:K70)","v":0}]
["Delež skupnih upravičenih stroškov projekta",{"$f":"B71/$N$27","v":{"$error":"#DIV/0!"}},{"$f":"C71/$N$27","v":{"$error":"#DIV/0!"}},{"$error":"#DIV/0!"},{"$error":"#DIV/0!"},{"$error":"#DIV/0!"},{"$f":"G71/$N$27","v":{"$error":"#DIV/0!"}},{"$error":"#DIV/0!"},null,null,null,null,"Skupni seštevek upravičenih stroškov mora biti enak  višini skupnih upravičenih stroškov projekta iz tabele  Viri financiranja."]
[]
["Indikativni časovni načrt porabe sredstev"]
["Za vsako obdobje navedite skupne upravičene stroške projekta. Višina nepovratnih sredstev in lastne udeležbe se izračuna samodejno"]
[]
[null,"Obdobje poročanja ",null,null,"Skupni upravičeni stroški projekta, nastali v izbranem obdobju",null,"Znesek nepovratnih sredstev",null,"Znesek lastne udeležbe"]
[null,"1.5.2014-31.8.2014",null,null,null,null,{"$f":"E78/$O$29","v":{"$error":"#DIV/0!"}},null,{"$f":"E78/$O$28","v":{"$error":"#DIV/0!"}},null,null,"Obvezno polje za tista obdobja, ki so del trajanja projekta"]
[null,"1.9.2014-31.12.2014",null,null,null,null,{"$f":"E79/$O$29","v":{"$error":"#DIV/0!"}},null,{"$f":"E79/$O$28","v":{"$error":"#DIV/0!"}}]
[null,"1.1.2015-30.4.2015",null,null,null,null,{"$error":"#DIV/0!"},null,{"$error":"#DIV/0!"}]
[null,"1.5.2015-31.8.2015",null,null,null,null,{"$error":"#DIV/0!"},null,{"$error":"#DIV/0!"}]
[null,"1.9.2015-31.12.2015",null,null,null,null,{"$error":"#DIV/0!"},null,{"$error":"#DIV/0!"}]
[null,"1.1.2016-30.4.2016",null,null,null,null,{"$error":"#DIV/0!"},null,{"$error":"#DIV/0!"}]
[null,"SKUPAJ ",null,null,{"$f":"SUM(E78:F83)","v":0},null,{"$f":"SUM(G78:H83)","v":{"$error":"#DIV/0!"}},null,{"$error":"#DIV/0!"},null,null,"Seštevek skupnih upravičenih stroškov projekta mora biti enak višini skupnih upravičenih stroškov projekta iz tabele Viri financiranja."]

{"sheet":"data_cas_nacrt","index":14,"n_rows":9,"n_cols":8,"rows_kept":9,"cut":false,"hidden":true,"merged":[]}
[]
[null,"delni",null,null,"celotno",null,null,"Delovni načrt projekta'"]
["ds","dej 2","dej 10",null,null,null,null,{"$f":"'Delovni načrt projekta'!F5","v":0}]
[1,9,18,"F5",null,"G19"]
[2,25,33,"G20"]
[3,41,49,"F35",35,50]
[4,57,65,"F51",51,66]
[5,73,81,"F67",67,82]
[6,89,97,"F83",83,98]

{"sheet":"Časovni načrt projekta","index":15,"n_rows":71,"n_cols":27,"rows_kept":71,"cut":false,"hidden":false,"merged":[[4,9,4,20],[4,21,4,24],[4,1,4,8],[2,0,2,24],[0,0,0,24]]}
["8. Časovni načrt projekta"]
[]
["Za vsako posamezno dejavnost iz 5. Delovni načrt projekta opredelite obdobje, v katerem bo potekala."]
[]
["Dejavnost",2014,null,null,null,null,null,null,null,2015,null,null,null,null,null,null,null,null,null,null,null,2016]
[null,5,6,7,8,9,10,11,12,1,2,3,4,5,6,7,8,9,10,11,12,1,2,3,4]
["D1.1 ",null,null,null,null,null,null,null,null,null,null,null,null,null,null,null,null,null,null,null,null,null,null,null,null,null,"označite ustrezne mesece z X"]
["D1.2"]
["D1.3"]
["D1.4"]
["D1.5"]
["D1.6"]
["D1.7"]
["D1.8"]
["D1.9"]
["D1.10"]
[]
["D2.1"]
["D2.2"]
["D2.3"]
["D2.4"]
["D2.5"]
["D2.6"]
["D2.7"]
["D2.8"]
["D2.9"]
["D2.10"]
[]
["D3.1"]
["D3.2"]
["D3.3"]
["D3.4"]
["D3.5"]
["D3.6"]
["D3.7"]
["D3.8"]
["D3.9"]
["D3.10"]
[]
["D4.1"]
["D4.2"]
["D4.3"]
["D4.4"]
["D4.5"]
["D4.6"]
["D4.7"]
["D4.8"]
["D4.9"]
["D4.10"]
[]
["D5.1"]
["D5.2"]
["D5.3"]
["D5.4"]
["D5.5"]
["D5.6"]
["D5.7"]
["D5.8"]
["D5.9"]
["D5.10"]
[]
["D6.1"]
["D6.2"]
["D6.3"]
["D6.4"]
["D6.5"]
["D6.6"]
["D6.7"]
["D6.8"]
["D6.9"]
["D6.10"]

{"sheet":"Tveganje za izvedbo projekta","index":16,"n_rows":20,"n_cols":8,"rows_kept":20,"cut":false,"hidden":false,"merged":[[0,0,0,1],[1,0,1,1],[10,0,10,1],[7,1,7,2],[8,1,8,2],[2,0,2,2],[6,1,6,2]]}
["9. Tveganje za izvedbo projekta"]
[]
["Opišite tveganja, ki lahko vplivajo na izvedbo projekta, in kako boste ukrepali, da se tveganju izognete oz. ga zmanjšate. Obvezno navedite ukrepe za zmanjšanje tveganja za splošna tveganja. V kolikor obstajajo tudi specifična tveganja, jih opredelite za posamezno dejavnost in navedite ukrepe za njihovo zmanjšanje."]
[null,null,null,null,null,null,null,0]
["Splošna tveganja",null,null,null,null,null,null,1]
[null,null,null,null,null,null,null,2]
["Tveganje","Ukrep za zmanjšanje tveganja",null,null,null,null,null,3]
["Pomanjkanje likvidnostnih sredstev za nemoteno izvajanje projekta skozi celotno obdobje",null,null,null,"Največ 500 znakov",null,null,4]
["Pomanjkanje ustreznih človeških virov znotraj organizacije prijavitelja in partnerjev",null,null,null,"Največ 500 znakov",null,null,5]
[null,null,null,null,null,null,null,6]
["Specifična tveganja za glavne dejavnosti",null,null,null,null,null,null,7]
[null,null,null,null,null,null,null,8]
["Število polj",16,null,null,"Izberite število polj iz seznama",null,null,9]
["Dejavnost","Tveganje","Ukrep za zmanjšanje tveganja",null,null,null,null,10]
[null,null,null,null,"Največ 500 znakov za opis ukrepov",null,null,11]
[null,null,null,null,null,null,null,12]
[null,null,null,null,null,null,null,13]
[null,null,null,null,null,null,null,14]
[null,null,null,null,null,null,null,15]
[null,null,null,null,null,null,null,16]

{"sheet":"Vpliv projekta na horizontalne","index":17,"n_rows":8,"n_cols":7,"rows_kept":8,"cut":false,"hidden":false,"merged":[[2,0,2,4]]}
["Vpliv projekta na horizontalne politike programa"]
[]
["Označite kako velik vpliv ima projekt na posamezne horizontale politike. Opišite, kako projekt vpliva nanje, pri čemer navedite morebitne posebne modele, strukture oz. mehanizme, s katerimi prispeva k uresničevanju horizontalnih politik."]
[]
["Horizontalne politike","Ni vpliva","Srednji vpliv","Velik vpliv","Vpliv projekta na horizontalne politike "]
["Trajnostni razvoj",null,null,null,null,null,"Največ 1000 znakov za opis vpliva"]
["Dobro upravljanje"]
["Enakost spolov"]

{"sheet":"Načrt informiranja in obveščanj","index":18,"n_rows":5,"n_cols":3,"rows_kept":5,"cut":false,"hidden":false,"merged":[]}
["11. Načrt informiranja in obveščanja"]
[]
["Predstavite načrt informiranja in obveščanja."]
[" "]
[null,null,"Največ 5000 znakov"]

{"sheet":"Kontrolni seznam","index":19,"n_rows":20,"n_cols":2,"rows_kept":20,"cut":false,"hidden":false,"merged":[[0,0,0,1],[1,0,1,1],[2,0,2,1]]}
["12. Kontrolni seznam"]
[]
[" Kontrolni seznam vam je zgolj v pomoč pri pripravi vloge."]
[]
[null,"Prijavnica v slovenščini in angleščini je izpolnjena v celoti, tiskana različica pa tudi podpisana in žigosana."]
[null,"Izjava prijavitelja je izpolnjena, podpisana in žigosana."]
[null,"Izjava o partnerstvu je izpolnjena, podpisana , žigosana in priložena za vsakega partnerja."]
[null,"Priložena je kopija ustanovnega dokumenta prijavitelja in vsakega partnerja."]
[null,"Priložena je bilanca stanja prijavitelja in partnerjev za leto 2012."]
[null,"Originalno pooblastilo, dano s strani odgovorne osebe institucije, v kolikor podpisnik ni odgovorna oseba."]
[null,"Vloga je pripravljena v enem izvirniku v tiskani različici."]
[null,"Priložena je vloga v elektronski obliki na CD, DVD ali USB-ključku."]
[null,"Ovojnica je ustrezno označena, vključno z navedbo področja oz. pod-področja razpisa."]
[null,"Projekt traja dlje kot 12 mesecev in se konča najpozneje 30. 4. 2016."]
[null,"Zaprošeni znesek nepovratnih sredstev za projekte na področju Pobude za javno zdravje ni manjši od 170.000 € in ne presega 1.000.000 € ter hkrati ne presega 95,00 % upravičenih stroškov projekta oz. 90,00% kadar je prijavitelj nevladna organizacija."]
[null,"Zaprošeni znesek nepovratih sredstev za projekte na področju Enakost spolov ni manjši od 50.000 € in ne presega 250.000 € ter hkrati ne presega 95,00 % upravičenih stroškov projekta oz. 90,00% kadar je prijavitelj nevladna organizacija."]
[null,"Lastno sofinanciranje se zagotavlja v višini najmanj 5,00 % celotnih upravičenih stroškov projekta oz. 10,00 % v kolikor je prijavitelj nevladna organizacija."]
[null,"Stroški nakupa nove opreme lahko predstavljajo do 30% skupnih upravičenih stroškov projekta"]
[null,"Pri projektih, kjer je nosilec projekta nevladna organizacija, lahko nematerialni prispevki v obliki prostovoljskega dela (»in-kind«) predstavljajo do 50% sredstev lastne udeležbe."]
[null,"Drugo"]

{"sheet":"Podpis","index":20,"n_rows":17,"n_cols":7,"rows_kept":17,"cut":false,"hidden":false,"merged":[[2,1,2,4],[3,1,3,4],[4,1,4,4],[14,4,15,4],[11,4,12,4]]}
[null,"13. Podpis prijavitelja"]
[]
[null,"Potrjujem, da imam polna pooblastila institucije prijaviteljice za podpis te prijave, da sem temeljito preveril/a vse izjave in podatke navedene v tej prijavi, in da so ti pravilni in natančni."]
[]
[null,"Soglašam, da lahko MGRT objavi dele te prijavnice."]
[]
[null,"Kraj in datum",null,null,"Podpis odgovorne ali pooblaščene osebe"]
[]
[null,null,null,null,null,null,"Podpišite in žigosajte le tiskano različico prijavnice."]
[null,null,null,null,"podpis"]
[]
[]
[]
[null,null,null,null,"ime in priimek "]
[]
[]
[null,null,null,null,"službeni naziv"]